{"text_format":"1","workbook":"xlsx","n_sheets":23,"sheets":["Cover Page","Facility Info","Operational Data","Operational Summary","Perf. Form 1","Energy Form 1","Permit Compliance","Improvements","Public Liasion","CO2 N2O","Residues","Water","Air (periodic)","Air (CEMS)","HCl","SO2","NOx","TOC","Particulates","CO 0.5 hourly","CO 95% 10 min","NH3","Template changes log"],"not_rendered":{"charts":8,"images":4,"macros":1,"external_links":0,"defined_names":24,"comments":0,"pivot_tables":0},"unopened":[],"bounds":{"document_bytes":16777216,"sheet_cells":100000,"rows_first":2000,"rows_last":500,"rows_between":2000,"halvings":0,"cell_chars":16384,"cell_head_chars":4096},"cells_cut":0,"cells_raw":0,"read":"whole","date_system":"1900"}

{"sheet":"Cover Page","index":0,"n_rows":53,"n_cols":11,"rows_kept":53,"cut":false,"hidden":false,"merged":[[48,2,48,3],[48,6,48,8],[52,2,52,3],[36,1,36,8],[40,2,40,8],[42,2,42,4],[44,2,44,4],[46,2,46,3],[46,6,46,8],[13,10,18,12],[34,1,34,8],[0,3,5,6],[7,1,23,8],[28,1,28,8],[30,1,30,8],[32,1,32,8]]}
[null,null,null,"Add company logo"]
[null,null,null,null,null,null,null,null,null,null,"Template version 25.1a (for incinerators) - 27/11/25"]
[]
[null,null,null,null,null,null,null,null,null,null,"Note that there is another version of this template available for co-incinerators"]
[]
[]
[]
[null,"Add photo"]
[]
[]
[]
[]
[null,null,null,null,null,null,null,null,null,null,"Notes:"]
[null,null,null,null,null,null,null,null,null,null,"This template may require adjustments by individual operators to meet specific reporting requirements as defined in the site Permit(s)"]
[]
[]
[]
[]
[]
[]
[]
[]
[]
[]
[]
[]
[]
[]
[null,"Annual Performance Report 2025"]
[]
[null,"Permit EPR/BT7116IW"]
[]
[null,"Lakeside Energy from Waste Limited"]
[]
[null,"other name of facility (if applicable)"]
[]
[null,"Lakeside EFW Ltd"]
[]
[null,"Year:",2025]
[]
[null,"Address:","Lakeside EFW Ltd, Lakeside Road, Colnbrook, SL3 0FE"]
[]
[null,"Tel: ","01753 688430"]
[]
[null,"Email: ","martin.rogers@lakesideewf.co.uk"]
[]
[null,"Prepared by:","Martin Rogers",null,null,"Position:","EHS Manager"]
[]
[null,"Approved by:","Danny Coulston",null,null,"Position:","Director of Operations"]
[]
[null,"Version:",1]
[]
[null,"Issue Date:"]

{"sheet":"Facility Info","index":1,"n_rows":22,"n_cols":11,"rows_kept":22,"cut":false,"hidden":false,"merged":[[4,0,17,8],[21,0,53,8],[4,10,13,13],[21,10,30,13]]}
[{"$f":"+'Cover Page'!$B$29","v":"Annual Performance Report 2025"},null,null,null,{"$f":"+'Cover Page'!$B$33","v":"Lakeside Energy from Waste Limited"}]
[]
["Plant Description and Design",null,null,null,null,null,null,null,null,null,"Notes:"]
[]
["Lakeside Energy from Waste (EfW)\n\nA joint venture project between two of the UK’s leading recycling and waste management companies; Grundon Waste Management and Viridor.\n\nThe Lakeside EfW facility at Colnbrook near Slough has been operational since 2010. Using advanced technology, this plant is capable of processessing over 450,000 tonnes of residual waste per year, generating 37MW of power – enough to provide electricity to every household in Slough (56,000 homes).\n\nThere is an education centre adjacent to Lakeside EfW, where schools and other groups can learn about sustainable waste management and energy from waste.\n",null,null,null,null,null,null,null,null,null,"Include summary of plant design, design capacity, no. of combustion lines, electrical and heat capacity and any other general information that describes the facility, its location and purpose "]
[]
[]
[]
[]
[]
[]
[]
[]
[]
[]
[]
[]
[]
[]
["Summary of Operational Processes and Procedures"]
[]
["Lakeside operate an Integrated Management System (IMS) that is ISO 14001, ISO 45001, ISO 9001, ISO 22301 and ISO 50001 certified. It includes all the procedures for receiving and inspecting waste, auditing suppliers to ensure waste quality and compliance. Operations includes procedures for running the plant, showing how to start a line, run a line and shutdown a line. EHS includes procedures for monitoring and reporting compliance. Maintenance includes all the procedures for planned maintenance, unplanned maintenance, outages and preventative maintenance.",null,null,null,null,null,null,null,null,null,"Include summary of key processes and procedures such as (but not limited to); waste reception, control rooms, grate, bed and boiler, energy & heat  generation, cooling systems, residue management, emission controls, health and safety systems, maintenance"]

{"sheet":"Operational Data","index":2,"n_rows":65,"n_cols":10,"rows_kept":65,"cut":false,"hidden":false,"merged":[[4,9,23,9],[25,9,29,9],[53,0,57,0],[34,1,39,1],[3,1,3,2],[10,1,22,1],[26,1,28,1],[7,2,7,3]]}
[{"$f":"+'Cover Page'!$B$29","v":"Annual Performance Report 2025"},null,null,null,{"$f":"+'Cover Page'!$B$33","v":"Lakeside Energy from Waste Limited"}]
[]
["Operational Data"]
["Plant Size:",468280,null,"tonnes pa",null,null,null,null,null,"Notes:"]
["Nominal net thermal input:",null,"MWth",null,null,null,null,null,null,"* Export capacity = nominal generation capacity at the generator terminals minus nominal parasitic load.\n\n** CHP and district heating plants only - put N/A if no heat export.\n\n***  Combusted tonnage = tonnes delivered in period + (tonnes in bunker at start of period – tonnes in bunker at end of period), or equivalent calculation depending on plant type\n\n**** Availability Definition: The availability of a line is to be calculated by the number of hours the line reported Continuously Monitored emission levels to the Regulator through the calendar year divided by the total number of hours in that year. \n\nThe overall plant availability is calculated as the mean of all lines in the plant. For clarity this includes periods of abnormal operation.  \n\nRationale: The primary function of an Energy from Waste facility is the disposal of waste. It follows therefore that the availability of a plant is determined by the period of time a facility spends undertaking this activity.\n\n*****NCV of waste: This should be completed for all plants which have a boiler. Calculate using total thermal power produced by boiler/boiler efficiency, or other suitable calculation. \n"]
["Nominal electrical export capacity*:",null,"MWe"]
["Nominal heat export capacity**:",null,"MWth"]
["No. of combustion lines:",2,"No. of steam turbines:",null,1]
[]
["Waste types received","Unit","Q1","Q2","Q3","Q4","Year Total","%"]
["Household / Local Authority","tonnes",62334,59714,61372,66301,{"$f":"SUM(C11:F11)","v":249721},{"$f":"IF(G11>0,G11/$G$21,\"-\")","v":0.6000009610740964}]
["Commercial & Industrial ",null,40423,38579,39956,43098,{"$f":"SUM(C12:F12)","v":162056},0.38936955941960738]
["Hazardous ",null,null,null,20,80,100,2.40268524102537E-4]
["Clinical",null,1133,1230,938,1023,4324,1.0389210982193699E-2]
["Waste wood (biomass) ",null,null,null,null,null,0,"-"]
["Refuse Derived Fuel (incl. SRF) - H'hold/LA",null,null,null,null,null,{"$f":"SUM(C16:F16)","v":0},"-"]
["Refuse Derived Fuel (incl. SRF) - C&I",null,null,null,null,null,0,"-"]
["Other [Please specify]",null,null,null,null,null,0,"-"]
["Other [Please specify]",null,null,null,null,null,0,"-"]
["Other [Please specify]",null,null,null,null,null,0,"-"]
["Total waste received",null,{"$f":"SUM(C11:C20)","v":103890},{"$f":"SUM(D11:D20)","v":99523},{"$f":"SUM(E11:E20)","v":102286},{"$f":"SUM(F11:F20)","v":110502},416201]
["Rejected Waste ",null,null,null,null,4.7,{"$f":"SUM(C22:F22)","v":4.7},{"$f":"IF(G22>0,G22/$G$21,\"-\")","v":1.1292620632819239E-5}]
["Unprocessed waste transferred out",null,null,null,null,null,{"$f":"SUM(C23:F23)","v":0},{"$f":"IF(G23>0,G23/$G$21,\"-\")","v":"-"}]
["Total waste combusted ***",null,101210,101467,99685,109696,{"$f":"SUM(C24:F24)","v":412058}]
[]
["Energy Usage / Export","Unit","Q1","Q2","Q3","Q4","Year Total","KWh/te",null,"Password for protected cells\nA password has been set to prevent accidental  editing of cells with formulae. \nIf you still need to make an edit for some reason then the password = 1234"]
["Power generated at generator terminals","MWh",78565,78337,75070,81186,{"$f":"SUM(C27:F27)","v":313158},{"$f":"IF(G27>0,G27*1000/$G$24,\"-\")","v":759.98524479563559}]
["Power exported to grid and other external user(s)",null,71237,70634,67302,73062,{"$f":"SUM(C28:F28)","v":282235},{"$f":"IF(G28>0,G28*1000/$G$24,\"-\")","v":684.93998417698481}]
["Power imported",null,6.5000000000000002E-2,3.9E-2,0.19900000000000001,0,0.30300000000000005,{"$f":"IF(G29>0,G29*1000/$G$24,\"-\")","v":7.3533337539860902E-4}]
["Indicative parasitic load","%",{"$f":"IF(C27>0,(C27-C28)/C27,\"-\")","v":9.3273085979761985E-2},{"$f":"IF(D27>0,(D27-D28)/D27,\"-\")","v":9.8331567458544489E-2},0.10347675502863994,0.10006651393097332,{"$f":"IF(G27>0,1-G28/(G27+G29),\"-\")","v":9.8746553113107205E-2}]
["Thermal Energy Exported **",null,null,null,null,null,{"$f":"SUM(C31:F31)","v":0},{"$f":"IF(G31>0,G31*1000/$G$24,\"-\")","v":"-"}]
["R1 value (if applicable)","R1","-","-","-","-"]
[]
["Waste Disposal & Recovery","Unit","Q1","Q2","Q3","Q4","Year Total","% inputs"]
["APC Residues - produced","tonnes",3337,3439,2691,3515,{"$f":"SUM(C35:F35)","v":12982},{"$f":"IF(G35>0,G35/$G$24,\"-\")","v":3.1505273529454592E-2}]
["IBA - produced",null,19689,19542,18627,20600,78458,{"$f":"IF(G36>0,G36/$G$24,\"-\")","v":0.19040523421460084}]
["Metals recycling",null,942,933,1105,947,{"$f":"SUM(C37:F37)","v":3927},9.5302117663047439E-3]
["Other",null,0,0,0,0,{"$f":"SUM(C38:F38)","v":0},"-"]
["Other",null,0,0,0,0,0,"-"]
["Other",null,0,0,0,0,0,"-"]
[]
["Raw Material Usage","Unit","Q1","Q2","Q3","Q4","Year Total","Qty./te"]
["Mains Water","m3",20284,22213,16706,21500,{"$f":"SUM(C43:F43)","v":80703},{"$f":"IF(G43>0,G43/$G$24,\"-\")","v":0.19585349635245525}]
["Other Water","ltrs",null,null,null,null,0,{"$f":"IF(G44>0,G44/$G$24,\"-\")","v":"-"}]
["Ammonia","kgs",null,null,null,null,0,"-"]
["Urea","kgs",9496,8628,3507,5601,{"$f":"SUM(C46:F46)","v":27232},6.6087783758597085E-2]
["Activated Carbon","kgs",44479,42702,42986,46522,176689,0.42879643157031294]
["Lime / hydrated lime","tonnes",1387,1422,1390,1404,5603,1.3597600337816521E-2]
["Fuel oil","ltrs",55714,118009,43931,2759,220413,0.53490770716743763]
["Gas","m3",null,null,null,null,0,"-"]
["Other",null,null,null,null,null,0,"-"]
[]
["Summary ","Line/Unit","Q1","Q2","Q3","Q4","Year Total",null,"Hrs in year "]
["Availability of waste combustion by line, hrs ****",1,1990,2116,2072,2208,{"$f":"SUM(C54:F54)","v":8386},{"$f":"+G54/$I$54","v":0.95730593607305936},8760,"Change this figure to 8784 in a leap year"]
[null,2,2126,2121,2075,2208,8530,{"$f":"+G55/$I$54","v":0.97374429223744297}]
[null,3,null,null,null,null,0,0]
[null,4,null,null,null,null,0,0]
[null,5,null,null,null,null,{"$f":"SUM(C58:F58)","v":0},0]
["Hours of turbine operations, hrs",1,2130,2163,2147,2208,8648,0.9872146118721461]
["Hours of turbine operations, hrs",2,null,null,null,null,0,0]
["Hours of heat / steam export**","hours",null,null,null,null,0,{"$f":"IF(B61>0,G60/I54,\"n/a\")","v":0}]
["Net calorific value of waste*****","MJ/kg",9981,10356,10087,10362]
["Abnormal operation events","qty.",1,null,1,1,3,{"$f":"IF(G63>0,\"yes\",\"no\")","v":"yes"}]
["Abnormal operation duration","hours",4.5,null,0.5,0.5,5.5,{"$f":"+(G64)/I54","v":6.278538812785388E-4}]
["Permit Breaches","qty.",null,null,1,1,2,{"$f":"IF(G65>0,\"yes\",\"no\")","v":"yes"}]

{"sheet":"Operational Summary","index":3,"n_rows":59,"n_cols":11,"rows_kept":59,"cut":false,"hidden":false,"merged":[[58,2,58,8],[59,2,59,8],[60,2,60,8],[62,2,62,8],[53,2,53,8],[54,2,54,8],[55,2,55,8],[56,2,56,8],[57,2,57,8],[29,10,63,13],[4,0,26,8],[4,10,13,13],[28,1,28,8],[29,2,29,8],[30,2,30,8],[31,2,31,8],[32,2,32,8],[33,2,33,8],[34,2,34,8],[35,2,35,8],[36,2,36,8],[37,2,37,8],[38,2,38,8],[42,2,42,8],[43,2,43,8],[65,2,65,8],[39,2,39,8],[40,2,40,8],[41,2,41,8],[63,2,63,8],[64,2,64,8],[44,2,44,8],[45,2,45,8],[46,2,46,8],[47,2,47,8],[48,2,48,8],[49,2,49,8],[61,2,61,8],[50,2,50,8],[51,2,51,8],[52,2,52,8]]}
[{"$f":"+'Cover Page'!$B$29","v":"Annual Performance Report 2025"},null,null,null,{"$f":"+'Cover Page'!$B$33","v":"Lakeside Energy from Waste Limited"}]
[]
["Summary of Plant Operations and Maintenance during the reporting year",null,null,null,null,null,null,null,null,null,"Notes:"]
[]
["The total downtime for the lines and turbine are as follows; A1 374.8 hours, A2 229.65 hours and the turbine 111.6 hours. The reasons are listed below. \nNew inverters were fitted to the ID fans, which were energy efficient. Following the install, there were a number of trips to each line that occured. This was traced to a protection issue and an issue with the UPS supply. PLC faults which were intermitant and therefore difficult to trace. \nThe turbine tripped due to a faulty temperature probe causing both lines to ESD and an essentials board problem caused further issues.\nDuring the mini outages opportunities were taken to repair grates and fix baghouse issues and any other issues with the plant that could only be carried out with a cold plant.",null,null,null,null,null,null,null,null,null,"Include summary of key operational and/or maintenance activity undertaken in the year, such as any major component upgrades and/or replacements "]
[]
[]
[]
[]
[]
[]
[]
[]
[]
[]
[]
[]
[]
[]
[]
[]
[]
[]
[]
[]
[]
[]
[]
[{"$f":"+'Cover Page'!C39","v":2025},"Plant shut-downs"]
["Start date","End date","Reason for shut-down",null,null,null,null,null,null,null,"Provide a very brief reason for plant shut-down e.g. \"Shut-down prior to major outage\"; \"Emergency shut-down due to boiler tube leak\". All emergency shut-downs must be listed (irrespective of whether or not they were required to be reported to the EA). \n\nThere is no need to include periods of hot-standby here (e.g. to clear feed chute hopper blockages).\n\nFor clinical waste incinerators which require regular shut-downs for boiler cleaning, there is no need to record these here (only those prior to major outages, and emergency shut-downs). "]
["2025-01-05","2025-01-05","A2 Fault with crane, prohibition on 0.2 hours"]
["2025-01-20","2025-01-26","A1 Baghouse issues on A1 139.3 hours"]
["2025-02-05","2025-02-06","A2 ID fan trip and investigation 2.35 hours"]
["2025-02-14","2025-02-14","A1 2.2 hours ID fan investigation"]
["2025-02-28","2025-02-28","A2 ID fan trip 0.6 hours"]
["2025-03-02","2025-03-02","A2 ID fan trip 0.7 hours"]
["2025-03-30","2025-04-02","A1 ID fan UPS fault 60.7 hours"]
["2025-03-30","2025-04-01","A2 ID fan UPS fault 46.4 hours"]
["2025-03-30","2025-04-01","Turbine trip IDF UPS fault both lines and turbine tripped"]
["2025-04-23","2025-04-24","A2 hopper blockage 28.3 hours"]
["2025-04-28","2025-04-29","A2 Incinerator card fault 0.9 hours"]
["2025-05-09","2025-05-10","A1 Burning grate failure 36.2 hours"]
["2025-05-27","2025-05-28","A2 Unexplained ESD"]
["2025-05-29","2025-05-29","A2 Unexplained ESD"]
["2025-06-11","2025-06-11","A2 PLC replacement 1.5 Hours"]
["2025-06-12","2025-06-12","A2 temperature dropped below 850 °C"]
["2025-06-17","2025-06-17","A2 Single side feed trial 0.5 hours"]
["2025-06-30","2025-07-05","A2 Mini outage crane and baghouse repairs"]
["2025-07-06","2025-07-06","A2 Crane repairs 1.5 hours"]
["2025-07-11","2025-07-12","A2 ID fan trip 1 hour"]
["2025-07-21","2025-07-26","A1 Grate bar replacement 120.2 hours"]
["2025-07-30","2025-07-30","A1 ESD due to outside grid problem"]
["2025-08-13","2025-08-13","A1 tripped due to bypass station fault following turbine trip. 0.1 Hours"]
["2025-08-13","2025-08-13","A2 turbine trip causing back pressure and line trip"]
["2025-08-13","2025-08-15","Turbine trip faulty generator temp probe 48.7 hours"]
["2025-08-29","2025-08-29","A1 trip due to essentials board trip 10.2 hours"]
["2025-08-29","2025-08-29","A2 trip due to essentials board trip 13.6 hours"]
["2025-08-29","2025-08-29","Turbine trip faulty essentials board 12.4 hours"]
["2025-09-23","2025-09-24","A1 trip waste umbilical shorted out, unable to feed waste 5.2 hours"]

{"sheet":"Perf. Form 1","index":4,"n_rows":55,"n_cols":10,"rows_kept":55,"cut":false,"hidden":false,"merged":[[47,0,47,1],[49,0,49,9],[38,0,38,9],[39,0,40,9],[43,0,43,1],[43,2,43,9],[45,0,45,1],[46,0,46,1],[50,0,52,9],[36,0,36,3],[36,4,36,5],[36,7,36,8],[37,0,37,3],[37,4,37,5],[37,7,37,8],[34,0,34,3],[34,4,34,5],[34,7,34,8],[35,0,35,3],[35,4,35,5],[35,7,35,8],[31,0,31,3],[31,7,31,8],[32,0,32,3],[32,4,32,5],[32,7,32,8],[33,0,33,3],[33,4,33,5],[33,7,33,8],[23,0,23,3],[23,4,23,5],[23,6,23,7],[23,8,23,9],[25,0,25,9],[26,0,28,9],[21,0,21,1],[21,2,21,3],[21,4,21,5],[21,6,21,7],[21,8,21,9],[22,0,22,3],[22,4,22,5],[22,6,22,7],[22,8,22,9],[19,0,19,1],[19,2,19,3],[19,4,19,5],[19,6,19,7],[19,8,19,9],[20,0,20,1],[20,2,20,3],[20,4,20,5],[20,6,20,7],[20,8,20,9],[17,0,17,1],[17,2,17,3],[17,4,17,5],[17,6,17,7],[17,8,17,9],[18,0,18,1],[18,2,18,3],[18,4,18,5],[18,6,18,7],[18,8,18,9],[15,0,15,1],[15,2,15,3],[15,4,15,5],[15,6,15,7],[15,8,15,9],[16,0,16,9],[13,0,13,1],[13,2,13,3],[13,4,13,5],[13,6,13,7],[13,8,13,9],[14,0,14,3],[14,4,14,5],[14,6,14,7],[14,8,14,9],[11,0,11,1],[11,2,11,3],[11,4,11,5],[11,6,11,7],[11,8,11,9],[12,0,12,1],[12,2,12,3],[12,4,12,5],[12,6,12,7],[12,8,12,9],[9,0,9,9],[10,0,10,1],[10,2,10,3],[10,4,10,5],[10,6,10,7],[10,8,10,9],[2,0,2,4],[2,6,2,8],[3,1,3,4],[5,3,5,4],[8,0,8,1],[8,2,8,3],[8,4,8,5],[8,6,8,7],[8,8,8,9]]}
[{"$f":"+'Cover Page'!C39","v":2025}," Annual Reporting Performance Form 1"]
[]
[{"$f":"+'Cover Page'!B31","v":"Permit EPR/BT7116IW"},null,null,null,null,"Operator: ",{"$f":"+'Cover Page'!B37","v":"Lakeside EFW Ltd"}]
["Facility:",{"$f":"+'Cover Page'!B33:I33","v":"Lakeside Energy from Waste Limited"},null,null,null,"Form:","Performance 1"]
[]
["Reporting  Period from: ",null,null,"1st January 2025",null,"to:","31st December 2025"]
[]
[{"$f":"+A1","v":2025},"Annual Reporting of Waste Disposal and Recovery"]
["Waste Description",null,"Disposal Route(s)",null,"Disposal Tonnes",null,"Recovery Tonnes",null,"% / tonne of waste incinerated"]
["1) Hazardous Wastes"]
["APC Residues",null,null,null,null,null,{"$f":"'Operational Data'!G35","v":12982},null,{"$f":"IF((E11+G11)>0,(E11+G11)/'Operational Data'!$G$24, \"-\")","v":3.1505273529454592E-2}]
["IBA",null,null,null,null,null,null,null,{"$f":"IF((E12+G12)>0,(E12+G12)/'Operational Data'!$G$24, \"-\")","v":"-"}]
[null,null,null,null,null,null,null,null,{"$f":"IF((E13+G13)>0,(E13+G13)/'Operational Data'!$G$24, \"-\")","v":"-"}]
[null,null,null,null,null,null,null,null,{"$f":"IF((E14+G14)>0,(E14+G14)/'Operational Data'!$G$24, \"-\")","v":"-"}]
["Total Hazardous Waste",null,null,null,{"$f":"SUM(E11:F14)","v":0},null,{"$f":"SUM(G11:H14)","v":12982},null,{"$f":"IF((E15+G15)>0,(E15+G15)/'Operational Data'!$G$24, \"-\")","v":3.1505273529454592E-2}]
[]
["2) Non-Hazardous Wastes"]
["IBA",null,null,null,null,null,{"$f":"'Operational Data'!G36","v":78458},null,{"$f":"IF((E18+G18)>0,(E18+G18)/'Operational Data'!$G$24, \"-\")","v":0.19040523421460084}]
["Ferrous Metal",null,null,null,null,null,{"$f":"'Operational Data'!G37","v":3927},null,{"$f":"IF((E19+G19)>0,(E19+G19)/'Operational Data'!$G$24, \"-\")","v":9.5302117663047439E-3}]
["Process Water",null,null,null,null,null,null,null,{"$f":"IF((E20+G20)>0,(E20+G20)/'Operational Data'!$G$24, \"-\")","v":"-"}]
[null,null,null,null,null,null,null,null,{"$f":"IF((E21+G21)>0,(E21+G21)/'Operational Data'!$G$24, \"-\")","v":"-"}]
[null,null,null,null,null,null,null,null,{"$f":"IF((E22+G22)>0,(E22+G22)/'Operational Data'!$G$24, \"-\")","v":"-"}]
["Total Non-Hazardous Waste",null,null,null,{"$f":"SUM(E18:F22)","v":0},null,{"$f":"SUM(G18:H22)","v":82385},null,{"$f":"IF((E23+G23)>0,(E23+G23)/'Operational Data'!$G$24, \"-\")","v":0.1999354459809056}]
["TOTAL WASTE",null,null,null,{"$f":"+E23+E15","v":0},null,{"$f":"+G23+G15","v":95367},null,{"$f":"IF((E24+G24)>0,(E24+G24)/'Operational Data'!$G$24, \"-\")","v":0.23144071951036019}]
[]
["Operator’s comments :"]
[]
[]
[]
[]
[{"$f":"+A1","v":2025},"Annual Reporting of Water and Other Raw Material Usage"]
["Raw Material",null,null,null,"Usage",null,"Unit","Specific Usage",null,"Unit"]
["Mains Water",null,null,null,{"$f":"+'Operational Data'!G43","v":80703},null,"m3",{"$f":"IF(E33>0,E33/'Operational Data'!$G$24,\"-\")","v":0.19585349635245525},null,"m3/te"]
["Total Water",null,null,null,{"$f":"+'Operational Data'!G44+'Operational Data'!G43","v":80703},null,"m3",{"$f":"IF(E34>0,E34/'Operational Data'!$G$24,\"-\")","v":0.19585349635245525},null,"m3/te"]
["Urea",null,null,null,{"$f":"+'Operational Data'!G46","v":27232},null,"kg",{"$f":"IF(E35>0,E35/'Operational Data'!$G$24,\"-\")","v":6.6087783758597085E-2},null,"kg/te"]
["Activated Carbon",null,null,null,{"$f":"+'Operational Data'!G47","v":176689},null,"kg",{"$f":"IF(E36>0,E36/'Operational Data'!$G$24,\"-\")","v":0.42879643157031294},null,"kg/te"]
["Lime",null,null,null,{"$f":"+'Operational Data'!G48*1000","v":5603000},null,"kg",{"$f":"IF(E37>0,E37/'Operational Data'!$G$24,\"-\")","v":13.597600337816521},null,"kg/te"]
[]
["Operator’s comments :"]
[]
[]
[]
[{"$f":"+A31","v":2025},"Annual Reporting of other performance indicators "]
["Parameter",null,"Results by Line"]
[null,null,"A1","A2","A3","A4","A5",null,"Turbine 1","Turbine 2"]
["Operating hours for the year, hours",null,8385.2000000000007,8530.4,null,null,null,null,8648.4]
["Number of periods of abnormal operation, qty.",null,3,0]
["Cumulative hours of abnormal operation for this year, hours",null,16.5,0]
[]
["Operator’s comments :"]
["There were 3 dust exceedences from failed filter bags. Counting the half hour averages where the daily limit was exceeded comes to 16.5 hours. Counting the half hour periods where the half hour limit was exceeded comes to 5 hours of abnormal operation."]
[]
[]
[]
["Signed: ",null,null,null,null,null,"Date:","2025-01-08"]

{"sheet":"Energy Form 1","index":5,"n_rows":29,"n_cols":8,"rows_kept":29,"cut":false,"hidden":false,"merged":[[15,0,15,2],[15,3,15,4],[15,6,15,8],[17,0,17,8],[18,0,24,8],[13,0,13,2],[13,3,13,4],[13,6,13,8],[14,0,14,2],[14,3,14,4],[14,6,14,8],[11,0,11,2],[11,3,11,4],[11,6,11,8],[12,0,12,2],[12,3,12,4],[12,6,12,8],[9,0,9,2],[9,3,9,4],[9,6,9,8],[10,0,10,2],[10,3,10,4],[10,6,10,8],[2,6,2,8],[4,1,4,4],[6,3,6,4],[6,6,6,7],[8,0,8,2],[8,3,8,4],[8,6,8,8]]}
[{"$f":"+'Cover Page'!C39","v":2025}," Annual Reporting of Energy Usage/Export"]
[]
[{"$f":"+'Cover Page'!B31","v":"Permit EPR/BT7116IW"},null,null,null,null,"Operator: ",{"$f":"+'Cover Page'!B37","v":"Lakeside EFW Ltd"}]
[]
["Facility:",{"$f":"+'Cover Page'!B33:I33","v":"Lakeside Energy from Waste Limited"},null,null,null,"Form:","Energy 1"]
[]
["Reporting  Period from: ",null,null,{"$f":"+'Perf. Form 1'!D6:E6","v":"1st January 2025"},null,"to:",{"$f":"+'Perf. Form 1'!G6:H6","v":"31st December 2025"}]
[]
["Energy Source",null,null,"Energy Usage",null,"Unit","Specific Usage (KWh/tonne incinerated"]
["Electricity Produced",null,null,{"$f":"+'Operational Data'!G27","v":313158},null,"MWh",{"$f":"+'Operational Data'!H27","v":759.98524479563559}]
["Electricity Imported   ",null,null,{"$f":"+'Operational Data'!G29","v":0.30300000000000005},null,"MWh",{"$f":"+'Operational Data'!H29","v":7.3533337539860902E-4}]
["Electricity Exported",null,null,{"$f":"+'Operational Data'!G28","v":282235},null,"MWh",{"$f":"+'Operational Data'!H28","v":684.93998417698481}]
["Gas Oil",null,null,{"$f":"'Operational Data'!G49/1000/0.83","v":265.55783132530121},null,"tonnes"]
["Steam/hot water exported",null,null,{"$f":"+'Operational Data'!G31","v":0},null,"GWh",{"$f":"+'Operational Data'!H31","v":"-"}]
[]
[]
[]
["Operator’s comments :"]
[]
[]
[]
[]
[]
[]
[]
[]
[]
[]
["Signed: ",null,null,null,null,null,"Date:","2026-01-06"]

{"sheet":"Permit Compliance","index":6,"n_rows":30,"n_cols":12,"rows_kept":30,"cut":false,"hidden":false,"merged":[[24,1,24,2],[25,1,25,2],[26,0,26,8],[19,7,19,8],[19,1,19,2],[19,3,19,5],[21,3,21,5],[22,3,22,5],[23,3,23,5],[24,3,24,5],[25,3,25,5],[21,1,21,2],[8,11,20,11],[28,0,28,10],[18,0,18,10],[33,1,33,3],[33,4,33,6],[33,7,33,9],[29,1,29,3],[29,4,29,6],[29,7,29,9],[30,1,30,3],[30,4,30,6],[30,7,30,9],[22,1,22,2],[23,1,23,2],[14,0,14,1],[14,2,14,4],[34,1,34,3],[34,4,34,6],[34,7,34,9],[31,1,31,3],[31,4,31,6],[31,7,31,9],[32,1,32,3],[32,4,32,6],[32,7,32,9],[14,5,14,8],[15,0,15,1],[16,2,16,4],[16,5,16,8],[15,2,15,4],[15,5,15,8],[16,0,16,1],[7,0,7,1],[7,2,7,8],[8,0,8,1],[8,2,8,4],[8,5,8,8],[35,4,35,8],[9,0,9,1],[9,2,9,4],[9,5,9,8],[10,0,10,1],[10,2,10,4],[10,5,10,8],[11,0,11,1],[11,2,11,4],[11,5,11,8],[12,0,12,1],[12,2,12,4],[12,5,12,8],[13,0,13,1],[13,2,13,4],[13,5,13,8]]}
[{"$f":"+'Cover Page'!$B$29","v":"Annual Performance Report 2025"},null,null,null,{"$f":"+'Cover Page'!$B$33","v":"Lakeside Energy from Waste Limited"}]
[]
["Summary of Permit Compliance"]
[]
["Compliance with permit limits for continuously monitored pollutants"]
[]
["The plant met its emission limits as shown in the table below:"]
["Substance",null,"Percentage time compliant during operationNote 1",null,null,null,null,null,null,null,null,"Notes:"]
[null,null,"Half-hourly limit",null,null,"Daily limit",null,null,null,null,null,"Note 1: Please report to 2 decimal places, i.e. xx.xx%\n\nNote 2: Please enter into this table any permit non-compliances that the EA has given a CCS score for. Please also enter any other non-compliances which you have notified to the EA (e.g. ELV exceedances) but which have not yet been assessed by the EA. There is no need to enter any notifications which were subsequently assessed by the EA not to be permit breaches.  \n\nNote 3: Please enter information here (rather than just referencing the notifications that were sent to the EA) including where relevant the incineration line reference, pollutant and value of the measured result for any ELV exceedances.   \n\n"]
["Particulates",null,0.99990000000000001,null,null,0.99450000000000005]
["Oxides of nitrogen",null,1,null,null,1]
["Sulphur dioxide",null,1,null,null,0.99990000000000001]
["Carbon monoxide",null,"100% 95% of 10-min averages",null,null,"100% 95% of 10-min averages"]
["Total organic carbon",null,1,null,null,1]
["Hydrogen chloride",null,1,null,null,0.99450000000000005]
["Hydrogen fluoride",null,1,null,null,1]
[]
[]
["Summary of non-compliances under the permit Note 2"]
["Date","Summary of non-compliance Note 3",null,"Reason ",null,null,"Measures taken to prevent reoccurrence","CCS score if applicable*"]
[null,null,null,null,null,null,null,"Impact","Root cause"]
["2025-01-18","Dust daily limit A1 21.36 mg/m3",null,"Failed bag",null,null,"Bag capped"]
["2025-08-20","HCl A2 daily limit 9.91 mg/m3",null,"Lime usage experiment",null,null,"Returned to original settings"]
["2025-09-03","Dust daily limit A1 5.18 mg/m3",null,"2 failed bags",null,null,"Bags capped"]
["2025-11-08","SO2 half hour avg 214.32 mg/m3",null,"Lime increased, load reduced",null,null,"SO2 containing waste"]
["2025-12-06","Dust half hour avg 31.66 mg/m3",null,"Failed bag",null,null,"Bag capped"]
[]
[]
["Summary of any complaints received and actions to taken to resolve them."]
["Date","Summary of complaint [including Line/Reference]",null,null,"Reason (including whether substantiated by the operator or the EA)",null,null,"Measures taken to prevent reoccurrence"]

{"sheet":"Improvements","index":7,"n_rows":39,"n_cols":5,"rows_kept":39,"cut":false,"hidden":false,"merged":[[37,0,37,8],[38,0,47,8],[4,0,4,8],[5,0,13,8],[15,0,15,8],[16,0,24,8],[26,0,26,8],[27,0,35,8]]}
[{"$f":"+'Cover Page'!$B$29","v":"Annual Performance Report 2025"},null,null,null,{"$f":"+'Cover Page'!$B$33","v":"Lakeside Energy from Waste Limited"}]
[]
["Summary of Plant Improvements"]
[]
["Summary of any efficiency improvements that have been completed within the year."]
["Installation of two VSD (Variable Speed Drive) inverters on each of the Induced Drive fans with projected energy savings of 3.9 %. Reduced in-house energy & CO2 Generation – improved operating efficiency of the plant."]
[]
[]
[]
[]
[]
[]
[]
[]
[]
["Summary of any permit improvement conditions that have been completed within the year and the resulting environmental benefits."]
["Lakeside were issued a permit to trial the incineration of insulation briquettes waste containing TCPP (Tris(2-chloroisopropyl) phosphate). At a concentration to render the material hazardous. The formulation was changed, so the material could go for normal waste incineration. The briquettes incinerated without causing any issues to the plant or the emissions.\nLakeside applied and was issued with a permit for the voluntary ETS (Emissions Trading Scheme). This commences in 2026 requiring Lakeside to report it's fossil fuel carbon emissions. Two Amesa B C14 instruments were fitted to each line enabling Lakeside to measure the biogenic carbon content of the waste."]
[]
[]
[]
[]
[]
[]
[]
[]
[]
["Summary of any changes to the plant or operating techniques which required a variation to the permit and a summary of the resulting environmental impact."]
[]
[]
[]
[]
[]
[]
[]
[]
[]
[]
["Summary of any other improvements made to the plant or planned to be made and a summary of the resulting environmental benefits."]
["VSD inverors will be installed on other equipment in the plant."]

{"sheet":"Public Liasion","index":8,"n_rows":29,"n_cols":5,"rows_kept":29,"cut":false,"hidden":false,"merged":[[23,0,24,1],[23,2,24,8],[25,0,26,1],[25,2,26,8],[28,0,28,8],[17,0,18,1],[17,2,18,8],[19,0,20,1],[19,2,20,8],[21,0,22,1],[21,2,22,8],[16,0,16,1],[16,2,16,8],[5,0,5,1],[5,2,5,8],[6,0,7,1],[6,2,7,8],[8,0,9,1],[8,2,9,8],[10,0,11,1],[10,2,11,8],[12,0,13,1],[12,2,13,8],[15,0,15,8]]}
[{"$f":"+'Cover Page'!$B$29","v":"Annual Performance Report 2025"},null,null,null,{"$f":"+'Cover Page'!$B$33","v":"Lakeside Energy from Waste Limited"}]
[]
["Details of Public & Stakeholder Liaison"]
[]
["Summary of events held during the reporting year."]
["Date",null,"Description"]
[]
[]
[]
[]
[]
[]
[]
[]
[]
["List of events planned for next year"]
["Date",null,"Description"]
[]
[]
[]
[]
[]
[]
[]
[]
[]
[]
[]
["If you wish to be involved in the public liaison programme, please contact _________________"]

{"sheet":"CO2 N2O","index":9,"n_rows":25,"n_cols":6,"rows_kept":25,"cut":false,"hidden":false,"merged":[[6,5,9,5],[22,2,22,3],[25,1,25,3],[16,2,16,3],[4,0,4,3],[9,0,9,3],[17,0,17,3],[13,0,13,3],[12,0,12,1],[8,2,8,3],[11,2,11,3],[19,2,19,3]]}
[{"$f":"+'Cover Page'!$B$29","v":"Annual Performance Report 2025"},null,{"$f":"+'Cover Page'!$B$33","v":"Lakeside Energy from Waste Limited"}]
[]
["Carbon dioxide emissions and biogenic content of waste inputs",null,null,null,null,"Notes:"]
[]
["Carbon dioxide emissions (all types of plant)"]
[null,"Annual mass of carbon dioxide released","tonnes ",425730]
[null,"Annual mass of carbon dioxide released per tonne of waste burned","t CO2 / t waste ",{"$f":"D6/'Operational Data'!G24","v":1.033179795077392},null,"Note 1: All permits require operators to continuously monitor CO2 to EN14181 and flow to BS EN 16911-2 (unless otherwise agreed in writing). Operators must therefore use the results from these instruments to calculate their annual CO2 emissions. Where an operator does not have a flow meter calibrated to BS EN 16911-2, the averaged flow measurement from that year's periodic monitoring can be used instead. If the plant does not have calibrated CO2 CEMS, a suitably justified emissions factor can be used. \n\n"]
[null,"Annual mass of carbon dioxide released per MWh of energy exported","t CO2 / MWh export ",{"$f":"D6/'Operational Data'!G28","v":1.5084238312044926}]
[null,"Description of how annual carbon dioxide mass emission has been calculated. \nSee Note 1","CO2 instruments (eN14181) calibrated QAL 2 function and calibrated flow meter (EN 16911-2) calculate CO2 in tonnes in real time."]
["Nitrous oxide emissions (only plants which use ammonia or urea to abate NOx emissions)"]
[null,"Annual mass emissions of nitrous oxide","tonnes N2O",2.71]
[null,"Description of how annual nitrous oxide mass emission has been calculated\nSee Note 2","N2O instruments (eN14181) calibrated QAL 2 function and calibrated flow meter (EN 16911-2) calculate CO2 in tonnes in real time.",null,null,"Note 2: All permits require operators to continuously monitor N2O to EN14181 and flow to BS EN 16911-2, unless otherwise agreed in writing. Operators must therefore use the results from these instruments to calculate their annual N2O emissions. Where an operator does not have a flow meter calibrated to BS EN 16911-2, the averaged flow measurement from periodic monitoring can be used instead. If the plant does not have calibrated N2O CEMS, data from periodic monitoring or a suitably justified emissions factor can be used instead."]
["Total annual carbon dioxide + nitrous oxide emissions. \nSee Note 3. ",null,"tonnes CO2e",{"$f":"(D11*265)+D6","v":426448.15},null,"Note 3: Total annual carbon dioxide and nitrous oxide emissions reported as carbon dioxide equivalent where 1 tonne nitrous oxide is equivalent to 265 tonnes carbon dioxide."]
["Biogenic CO2 emissions (See Note 4)",null,null,null,null,"Note 4: Only plants combusting residual municipal waste, refuse derived fuel or solid recovered fuel need complete this section. "]
[null,"Percentage of total carbon dioxide emissions arising from biogenic waste","%",0.5494]
[null,"No. of measurements undertaken","Number",24]
[null,"Description of how percentage biogenic carbon dioxide emissions have been measured or calculated.\nSee Note 5","C14 Sampler on each line, used with the cartridges changed and sent for analyses monthly.",null,null,"Note 5: The results from C14 sampling should be used if this is carried out at the plant (either via an installed sampler or from spot samples).  \nOtherwise, as an approximation (and in lieu of any more accurate metrics which may be developed in future), the measured or estimated biogenic fraction by net calorific value (see Note 6) can be assumed to be the same as the biogenic CO2 fraction of the total CO2 emissions from the plant. "]
["Biogenic fraction of waste feedstock (See Note 4)"]
[null,"Yearly average biogenic percentage of the waste by net calorific value (NCV)","%"]
[null,"Description of how biogenic percentage (by NCV) has been calculated or estimated. \nSee Note 6",null,null,null,"Note 6: If C14 sampling is carried out at the plant, the methodology set out in the embedded document entitled \"Renewable Energy Association Energy Content of Fuels - Description of Method\" embedded below can be used to calculate the biogenic percentage by net calorific value. Otherwise, data from waste sampling or BIOMA software can be used; or if none of these are available, an estimated figure with justification or a figure assumed on the basis of up-to-date industry data can be used. "]
[null,"Yearly average biogenic percentage of the waste by mass","%"]
[null,"If waste sampling undertaken, no. of samples used to ascertain average biogenic percentages above","Number"]
[null,"Description of how biogenic percentage (by mass) has been calculated or estimated. \nSee Note 7",null,null,null,"Note 7: Where available, data from waste sampling should be used; otherwise, an estimated figure with justification can be used, or a figure assumed on the basis of up-to-date industry data. "]
[]
[null,"Comments:"]

{"sheet":"Residues","index":10,"n_rows":62,"n_cols":11,"rows_kept":62,"cut":false,"hidden":false,"merged":[[61,0,66,6],[57,3,57,4],[60,0,60,6],[52,0,53,1],[54,0,54,1],[55,0,55,1],[56,0,56,1],[57,0,57,1],[54,3,54,4],[55,3,55,4],[54,5,54,6],[55,5,55,6],[56,5,56,6],[57,5,57,6],[58,0,58,6],[45,0,46,1],[45,2,46,6],[47,0,48,1],[47,2,48,6],[56,3,56,4],[52,2,53,2],[53,3,53,4],[53,5,53,6],[52,3,52,6],[51,0,51,6],[4,0,25,8],[4,10,13,13],[41,0,42,1],[41,2,42,6],[43,0,44,1],[43,2,44,6],[37,0,37,6],[38,0,38,1],[38,2,38,6],[30,0,31,6],[32,0,33,6],[34,0,35,6],[39,0,40,1],[39,2,40,6]]}
[{"$f":"+'Cover Page'!$B$29","v":"Annual Performance Report 2025"},null,null,null,{"$f":"+'Cover Page'!$B$33","v":"Lakeside Energy from Waste Limited"}]
[]
["Summary of Residue Handling for the reporting year"]
[]
["The IBA follows the ESA (Environmental Services Association) sampling and testing protocol and is sampled twice a month, so 24 times a year to determine whether it is hazardous. A full 15 property hazard assessment is annually on IBA in accordance with the EA's WM3 guidance, v 1.2GB (EA 2021), supported by additional studies completed for ESA for in vitro irritancy testing and metal speciation. Routine hazard assessments are restricted to HP4 (irritant), HP7 (carcinogenic), HP8 (corrosive) and HP14 (ecotoxic). Lakeside stand at zero samples hazardous on a rolling 24 sample assessment.\nCompliance monitoring of IBA and APC is carried out 4 times a year, once per quarter. ",null,null,null,null,null,null,null,null,null,"Include in here a summary of residue handling regimes and destinations "]
[]
[]
[]
[]
[]
[]
[]
[]
[]
[]
[]
[]
[]
[]
[]
[]
[]
[]
[]
[]
[]
[]
["Residue Quality Monitoring Requirements"]
[]
["Summary of monitoring undertaken and compliance"]
["IBA and APC were compliant with the permit. The IBA has zero hazardous samples on a rolling 24 sample assessment."]
[]
[]
[]
[]
[]
[]
["Commentary on any specific events"]
["Date & Event",null,"Description"]
[]
[]
[]
[]
[]
[]
[]
[]
[]
[]
[]
[]
["Residue Quality Monitoring Results"]
["Parameter (unit) ",null,"Limit*","Normal Operation "]
[null,null,null,"Bottom ash  ",null,"APC Residues"]
["Loss on Ignition (average %)",null,"<5%"]
["Total Organic Carbon (average %)",null,"<3%",0.55000000000000004]
["No. of Assessments Undertaken",null,"---",24,null,4]
["No. of Hazardous Results",null,"---",0]
["* The permit will specify a limit of either 5% loss on ignition or 3% total organic carbon. If both are measured anyway, please enter the results here, even where the limit does not apply. "]
[]
["Comments :"]
["IBA continues to be well below the TOC limit of 3% showing good burnout of the waste."]

{"sheet":"Water","index":11,"n_rows":23,"n_cols":9,"rows_kept":23,"cut":false,"hidden":false,"merged":[[29,0,29,2],[29,3,29,4],[26,0,26,2],[26,3,26,4],[27,0,27,2],[27,3,27,4],[28,0,28,2],[28,3,28,4],[23,0,23,2],[23,3,23,4],[24,0,24,2],[24,3,24,4],[25,0,25,2],[25,3,25,4],[21,0,21,8],[22,0,22,2],[22,3,22,4],[14,0,15,1],[14,2,15,8],[16,0,17,1],[16,2,17,8],[18,0,19,1],[18,2,19,8],[5,0,6,8],[7,0,8,8],[9,0,10,8],[12,0,12,8],[13,0,13,1],[13,2,13,8]]}
[{"$f":"+'Cover Page'!$B$29","v":"Annual Performance Report 2025"},null,null,null,{"$f":"+'Cover Page'!$B$33","v":"Lakeside Energy from Waste Limited"}]
[]
["Emissions to Water"]
[]
["Summary of monitoring undertaken and compliance"]
["No trade effluent discharged to sewer."]
[]
[]
[]
[]
[]
[]
["Commentary on any specific events"]
["Date & Event",null,"Description"]
[]
[]
[]
[]
[]
[]
[]
["Emissions to Water / Sewer"]
["Parameter",null,null,"Monitoring Frequency",null,"Limit","Target","Max.","Average"]

{"sheet":"Air (periodic)","index":12,"n_rows":39,"n_cols":11,"rows_kept":39,"cut":false,"hidden":false,"merged":[[13,10,14,12],[15,10,16,10],[15,11,16,11],[15,12,16,12],[18,3,18,4],[13,3,13,4],[14,3,14,4],[15,3,15,4],[16,3,16,4],[17,3,17,4],[21,3,21,4],[22,3,22,4],[23,3,23,4],[24,3,24,4],[31,3,31,4],[25,3,25,4],[26,3,26,4],[28,3,28,4],[38,0,38,9],[19,0,19,1],[20,0,20,1],[21,0,21,1],[34,3,34,4],[35,3,35,4],[33,0,33,1],[34,0,34,1],[35,0,35,1],[36,0,36,1],[24,0,24,1],[32,3,32,4],[27,3,27,4],[33,3,33,4],[19,3,19,4],[20,3,20,4],[39,0,40,9],[25,0,25,1],[26,0,26,1],[22,0,22,1],[23,0,23,1],[37,0,37,1],[27,0,27,1],[28,0,28,1],[29,0,29,1],[30,0,30,1],[31,0,31,1],[32,0,32,1],[37,3,37,4],[29,3,29,4],[30,3,30,4],[36,3,36,4],[16,0,16,1],[17,0,17,1],[18,0,18,1],[13,0,13,1],[14,0,14,1],[15,0,15,1],[12,0,12,1],[11,3,11,4],[12,3,12,4],[9,0,10,1],[9,5,9,9],[9,3,10,4],[9,2,10,2],[5,10,8,13],[9,10,11,13],[8,0,8,9],[5,0,6,9],[11,0,11,1]]}
[{"$f":"+'Cover Page'!$B$29","v":"Annual Performance Report 2025"},null,null,null,{"$f":"+'Cover Page'!$B$33","v":"Lakeside Energy from Waste Limited"}]
[]
["Emissions to Air (periodically monitored)"]
[]
["Summary of monitoring undertaken, standards used and compliance",null,null,null,null,null,null,null,null,null,"Notes:"]
["HF CEN TS 17340, Cd Th & Metals BS EN 14385, Hg BS EN 13211, Dioxins/ Furans (I-TEQ) BS EN 1948 Parts 1 - 3,\nPAHs BS ISO 11338-1 and BS ISO 1138-2",null,null,null,null,null,null,null,null,null,"Template may require adjustment for any bespoke monitoring requirements of permit - please also check that all default ELV values, reference periods and the stated oxygen reference value match those for your plant, and edit if necessary!"]
[]
[]
["Results of emissions to air that are periodically monitored - oxygen reference 11% "]
["Substance",null,"Ref. Period","Emission Limit Value",null,"Average",null,null,null,null,"User to add additional tables as necessary, depending on whether quarterly or bi-annual reporting is required for the compliance year"]
[null,null,null,null,null,"A1","A2","A3","A4","A5"]
["Hydrogen fluoride",null,"1 hr","1 mg/m3",null,0.12,0.12]
["Cd and Tl and their compounds",null,"0.5-8hrs","0.02 mg/m3",null,8.4999999999999995E-4,8.0000000000000004E-4]
["Hg and its compounds",null,"0.5-8hrs","0.02 mg/m3",null,3.65E-3,5.2500000000000003E-3]
["Sb, As, Pb, Cr, Co, Cu, Mn, Ni, V and their compounds",null,"0.5-8hrs","0.3 mg/m3",null,4.2000000000000003E-2,6.9500000000000006E-2]
["Dioxins & Furans (I-TEQ)",null,"6-8hrs","0.06 ng/m3",null,8.6999999999999994E-3,5.1999999999999998E-3]
["PCBs (WHO-TEQ Humans / Mammals)",null,"6-8hrs","None set ng/m3",null,1.6000000000000001E-3,1.57E-3]
["PCBs (WHO-TEQ Fish)",null,"6-8hrs","None set ng/m3",null,1E-4,6.0000000000000002E-5]
["PCBs (WHO-TEQ Birds)",null,"6-8hrs","None set ng/m3",null,3.0999999999999999E-3,1.72E-3]
["Dioxins & Furans (WHO-TEQ Humans / Mammals)",null,"6-8hrs","None set ng/m3",null,8.6E-3,5.1999999999999998E-3]
["Dioxins & Furans (WHO-TEQ Fish)",null,"6-8hrs","None set ng/m3",null,9.4999999999999998E-3,5.5500000000000002E-3]
["Dioxins & Furans (WHO-TEQ Birds)",null,"6-8hrs","None set ng/m3",null,1.5800000000000002E-2,8.8500000000000002E-3]
["Anthanthrene",null,"6-8hrs","None set µg/m3",null,"<0.0011","<0.0011"]
["Benzo(a)anthracene",null,"6-8hrs","None set µg/m3",null,"<0.0011","<0.0011"]
["Benzo(a)pyrene",null,"6-8hrs","None set µg/m3",null,"<0.0011","<0.0011"]
["Benzo(b)fluoranthene",null,"6-8hrs","None set µg/m3",null,"<0.0011","<0.0011"]
["Benzo(b)naptho(2,1-d) thiophene",null,"6-8hrs","None set µg/m3",null,"<0.0011","<0.0011"]
["Benzo(c)phenanthrene",null,"6-8hrs","None set µg/m3",null,"<0.0011","<0.0011"]
["Benzo(ghi)perylene",null,"6-8hrs","None set µg/m3",null,"<0.0011","<0.0011"]
["Benzo(k)fluoranthene",null,"6-8hrs","None set µg/m3",null,"<0.0011","<0.0011"]
["Cholanthrene",null,"6-8hrs","None set µg/m3",null,"<0.0011","<0.0011"]
["Chrysene",null,"6-8hrs","None set µg/m3",null,"<0.0011","<0.0011"]
["Cyclopenta(cd)pyrene",null,"6-8hrs","None set µg/m3",null,"<0.0011","<0.0011"]
["Dibenzo(ai)pyrene",null,"6-8hrs","None set µg/m3",null,"<0.0011","<0.0011"]
["Dibenzo(ah)anthracene",null,"6-8hrs","None set µg/m3",null,"<0.0011","<0.0011"]
["Fluoranthene",null,"6-8hrs","None set µg/m3",null,0.03,0.03]
["Indeno(123-cd) pyrene",null,"6-8hrs","None set µg/m3",null,"<0.0011","<0.0011"]
["Naphthalene",null,"6-8hrs","None set µg/m3",null,0.185,0.185]
["Comments :"]

{"sheet":"Air (CEMS)","index":13,"n_rows":28,"n_cols":14,"rows_kept":28,"cut":false,"hidden":false,"merged":[[28,0,29,12],[13,0,14,0],[5,0,6,12],[7,0,8,12],[10,0,10,12],[11,0,12,0],[11,2,12,2],[11,1,12,1],[11,3,11,4],[11,5,11,6],[11,7,11,8],[11,9,11,10],[11,11,11,12],[14,13,15,13],[14,14,15,14],[14,15,15,15],[12,13,13,15],[26,0,26,12]]}
[{"$f":"+'Cover Page'!$B$29","v":"Annual Performance Report 2025"},null,null,null,null,null,null,null,{"$f":"+'Cover Page'!$B$33","v":"Lakeside Energy from Waste Limited"}]
[]
["Emissions to Air (continuously monitored)"]
[null,null,null,null,null,null,null,null,null,null,null,null,null,"Notes:"]
["Summary of monitoring undertaken, standards used and compliance",null,null,null,null,null,null,null,null,null,null,null,null,"Template may require adjustment for any bespoke monitoring requirements of permit"]
["Contiuous emissions monitoring method EN 14181.",null,null,null,null,null,null,null,null,null,null,null,null,"Please check that all default ELV values match those for your plant and edit if necessary!"]
[null,null,null,null,null,null,null,null,null,null,null,null,null,"Report to 1 decimal place"]
[]
[]
[]
["Results of emissions to air that are continuously monitored (maximum and average values for each line) - oxygen reference 11%"]
["Substance","Reference Period","Emission Limit Value","A1",null,"A2",null,"A3",null,"A4",null,"A5"]
[null,null,null,"Max.","Avg.","Max.","Avg.","Max.","Avg.","Max.","Avg.","Max.","Avg."]
["Oxides of nitrogen","Daily mean","180 mg/m3 ",{"$f":"NOx!O19","v":176.28},{"$f":"NOx!N19","v":150.21083333333334},{"$f":"NOx!O34","v":171.94},{"$f":"NOx!N34","v":152.00916666666669}]
[null,"½ hourly mean","400 mg/m3 ",{"$f":"NOx!M19","v":254.74},{"$f":"NOx!L19","v":150.22916666666666},{"$f":"NOx!M34","v":266},{"$f":"NOx!L34","v":151.89916666666667}]
["Particulates","Daily mean","5 mg/m3",{"$f":"Particulates!O19","v":21.36},{"$f":"Particulates!N19","v":1.0558333333333334},{"$f":"Particulates!O34","v":3.42},{"$f":"Particulates!N34","v":0.32500000000000001}]
[null,"½ hourly mean","30 mg/m3 ",{"$f":"Particulates!M19","v":119.19},{"$f":"Particulates!L19","v":1.0541666666666667},{"$f":"Particulates!M34","v":8.0299999999999994},{"$f":"Particulates!L34","v":0.32916666666666666}]
["Total Organic Carbon ","Daily mean","10 mg/m3 ",{"$f":"TOC!O19","v":0.71},{"$f":"TOC!N19","v":-0.16749999999999998},{"$f":"TOC!O34","v":3.74},{"$f":"TOC!N34","v":0.15333333333333335}]
[null,"½ hourly mean","20 mg/m3 ",{"$f":"TOC!M19","v":13.02},{"$f":"TOC!L19","v":-0.16583333333333336},{"$f":"TOC!M34","v":16.739999999999998},{"$f":"TOC!L34","v":0.16916666666666669}]
["Hydrogen chloride ","Daily mean","8 mg/m3 ",{"$f":"HCl!O19","v":7.97},{"$f":"HCl!N19","v":4.2524999999999995},{"$f":"HCl!O34","v":9.91},{"$f":"HCl!N34","v":4.2208333333333332}]
[null,"½ hourly mean","60 mg/m3 ",{"$f":"HCl!M19","v":57.09},{"$f":"HCl!L19","v":4.2783333333333333},{"$f":"HCl!M34","v":36.299999999999997},{"$f":"HCl!L34","v":4.2249999999999996}]
["Sulphur dioxide","Daily mean","40 mg/m3 ",{"$f":"'SO2'!O19","v":15.18},{"$f":"'SO2'!N19","v":4.4041666666666677},{"$f":"'SO2'!O34","v":18.850000000000001},{"$f":"'SO2'!N34","v":4.8}]
[null,"½ hourly mean","200 mg/m3 ",{"$f":"'SO2'!M19","v":214.3},{"$f":"'SO2'!L19","v":4.4666666666666668},{"$f":"'SO2'!M34","v":179.66},{"$f":"'SO2'!L34","v":4.8133333333333326}]
["Carbon monoxide ","Daily mean","50 mg/m3 ",{"$f":"'CO 95% 10 min'!Q22","v":32.4},{"$f":"'CO 95% 10 min'!P22","v":11.075000000000001},{"$f":"'CO 95% 10 min'!Q37","v":42.51},{"$f":"'CO 95% 10 min'!P37","v":9.5183333333333326}]
[null,"95%ile 10-min avg *","150 mg/m3 *",{"$f":"'CO 95% 10 min'!M22","v":110.33},{"$f":"'CO 95% 10 min'!N22","v":11.04916666666667},{"$f":"'CO 95% 10 min'!M37","v":147.15},{"$f":"'CO 95% 10 min'!N37","v":9.5466666666666669}]
[" Ammonia","Daily mean","15 mg/m3 ",1.0900000000000001,0.3,4.43,0.3]
["* = delete as appropriate, depending on whether your plant has half-hourly or 10-min CO ELVs\n"]
["Comments :"]

{"sheet":"HCl","index":14,"n_rows":79,"n_cols":17,"rows_kept":79,"cut":false,"hidden":false,"merged":[[12,16,15,18],[51,9,63,9],[66,9,78,9],[4,9,4,14],[4,1,4,3],[4,4,4,6],[48,0,51,6],[47,0,47,6],[6,9,18,9],[21,9,33,9],[36,9,48,9],[3,16,7,18],[9,16,11,18],[18,4,18,6]]}
[{"$f":"+'Cover Page'!$B$29","v":"Annual Performance Report 2025"},null,null,null,{"$f":"+'Cover Page'!$B$33","v":"Lakeside Energy from Waste Limited"}]
[]
["Monitoring of Hydrogen Chloride emissions",null,null,"Whole Installation",null,null,"See  Notes in Cell Q3",null,null,{"$f":"+A3","v":"Monitoring of Hydrogen Chloride emissions"},null,null,null,"Per Combustion Line",null,null,"Notes:"]
[null,null,null,null,null,null,null,null,null,null,null,null,null,null,null,null,"User to add logic to complete Whole installation, Table A5:G18. From the data in Per Combustion Line, Table J6:O79, subject to No. of lines installed"]
[{"$f":"+'Cover Page'!C39","v":2025},"1/2 Hourly Reference Periods",null,null,"Daily Reference Periods"]
["mg/Nm3","1/2 hourly HCl ELV","Monthly mean of half-hourly averages","Highest half- hourly average","Daily HCl ELV","Monthly mean of  daily averages","Highest daily average",null,null,{"$f":"+A5","v":2025},"mg/Nm3","Monthly mean of half-hourly averages","Highest half- hourly average","Monthly mean of  daily averages","Highest daily average"]
["Jan",60,{"$f":"(L7+L22)/2","v":3.2249999999999996},{"$f":"(M7+M22)/2","v":36.900000000000006},8,{"$f":"(N7+N22)/2","v":3.04},{"$f":"(O7+O22)/2","v":3.7199999999999998},null,null,"A1","Jan",3.94,57.09,3.57,4.43]
["Feb",60,{"$f":"(L8+L23)/2","v":3.3049999999999997},21.32,8,{"$f":"(N8+N23)/2","v":3.3049999999999997},5.3550000000000004,null,null,null,"Feb",3.81,6.34,3.81,4.7]
["Mar",60,{"$f":"(L9+L24)/2","v":3.6},6.8699999999999992,8,{"$f":"(N9+N24)/2","v":3.5949999999999998},4.29,null,null,null,"Mar",4.25,9.69,4.26,5.26,null,"Whole Installation table A5:G18:"]
["Apr",60,{"$f":"(L10+L25)/2","v":4.24},10.52,8,{"$f":"(N10+N25)/2","v":4.2249999999999996},5.9050000000000002,null,null,null,"Apr",3.82,7.1,3.84,4.83,null,"Mean: for 1/2 hourly and daily periods calculate mean of values across all operational combustion lines for the month"]
["May",60,{"$f":"(L11+L26)/2","v":4.74},9.0449999999999999,8,{"$f":"(N11+N26)/2","v":4.6999999999999993},6.86,null,null,null,"May",4.18,7.97,4.0999999999999996,6.78]
["Jun",60,{"$f":"(L12+L27)/2","v":5.1050000000000004},12.46,8,{"$f":"(N12+N27)/2","v":5.1150000000000002},6.65,null,null,null,"Jun",4.6500000000000004,15.85,4.6500000000000004,7.13]
["Jul",60,{"$f":"(L13+L28)/2","v":3.48},8.11,8,{"$f":"(N13+N28)/2","v":3.4950000000000001},5.665,null,null,null,"Jul",3.86,7.03,3.91,6.61,null,"Maximum: for 1/2 hourly and daily periods use the highest value across all operational combustion lines for the month"]
["Aug",60,{"$f":"(L14+L29)/2","v":5.48},15.984999999999999,8,{"$f":"(N14+N29)/2","v":5.51},8.8650000000000002,null,null,null,"Aug",5.0199999999999996,15.15,5.0599999999999996,7.82]
["Sep",60,{"$f":"(L15+L30)/2","v":4.6749999999999998},14.55,8,{"$f":"(N15+N30)/2","v":4.6850000000000005},5.9,null,null,null,"Sep",3.98,22.18,4,5.41]
["Oct",60,{"$f":"(L16+L31)/2","v":4.7300000000000004},12.494999999999999,8,{"$f":"(N16+N31)/2","v":4.7300000000000004},6.915,null,null,null,"Oct",5.09,18.36,5.09,7.74]
["Nov",60,{"$f":"(L17+L32)/2","v":3.79},11.885,8,{"$f":"(N17+N32)/2","v":3.79},4.9800000000000004,null,null,null,"Nov",3.45,12.78,3.45,3.99]
["Dec",60,{"$f":"(L18+L33)/2","v":4.6500000000000004},28.975000000000001,8,{"$f":"(N18+N33)/2","v":4.6500000000000004},6.915,null,null,null,"Dec",5.29,51.38,5.29,7.97]
[null,null,null,null,null,null,null,null,null,null,"Annual",{"$f":"AVERAGE(L7:L18)","v":4.2783333333333333},{"$f":"MAX(M7:M18)","v":57.09},{"$f":"AVERAGE(N7:N18)","v":4.2524999999999995},{"$f":"MAX(O7:O18)","v":7.97}]
[]
[null,null,null,null,null,null,null,null,null,{"$f":"+A5","v":2025},"mg/Nm3","Monthly mean of half-hourly averages","Highest half- hourly average","Monthly mean of  daily averages","Highest daily average"]
[null,null,null,null,null,null,null,null,null,"A2","Jan",2.5099999999999998,16.71,2.5099999999999998,3.01]
[null,null,null,null,null,null,null,null,null,null,"Feb",2.8,36.299999999999997,2.8,6.01]
[null,null,null,null,null,null,null,null,null,null,"Mar",2.95,4.05,2.93,3.32]
[null,null,null,null,null,null,null,null,null,null,"Apr",4.66,13.94,4.6100000000000003,6.98]
[null,null,null,null,null,null,null,null,null,null,"May",5.3,10.119999999999999,5.3,6.94]
[null,null,null,null,null,null,null,null,null,null,"Jun",5.56,9.07,5.58,6.17]
[null,null,null,null,null,null,null,null,null,null,"Jul",3.1,9.19,3.08,4.72]
[null,null,null,null,null,null,null,null,null,null,"Aug",5.94,16.82,5.96,9.91]
[null,null,null,null,null,null,null,null,null,null,"Sep",5.37,6.92,5.37,6.39]
[null,null,null,null,null,null,null,null,null,null,"Oct",4.37,6.63,4.37,6.09]
[null,null,null,null,null,null,null,null,null,null,"Nov",4.13,10.99,4.13,5.97]
[null,null,null,null,null,null,null,null,null,null,"Dec",4.01,6.57,4.01,5.86]
[null,null,null,null,null,null,null,null,null,null,"Annual",{"$f":"AVERAGE(L22:L33)","v":4.2249999999999996},{"$f":"MAX(M22:M33)","v":36.299999999999997},{"$f":"AVERAGE(N22:N33)","v":4.2208333333333332},{"$f":"MAX(O22:O33)","v":9.91}]
[]
[null,null,null,null,null,null,null,null,null,{"$f":"+A5","v":2025},"mg/Nm3","Monthly mean of half-hourly averages","Highest half- hourly average","Monthly mean of  daily averages","Highest daily average"]
[null,null,null,null,null,null,null,null,null,"A3","Jan"]
[null,null,null,null,null,null,null,null,null,null,"Feb"]
[null,null,null,null,null,null,null,null,null,null,"Mar"]
[null,null,null,null,null,null,null,null,null,null,"Apr"]
[null,null,null,null,null,null,null,null,null,null,"May"]
[null,null,null,null,null,null,null,null,null,null,"Jun"]
[null,null,null,null,null,null,null,null,null,null,"Jul"]
[null,null,null,null,null,null,null,null,null,null,"Aug"]
[null,null,null,null,null,null,null,null,null,null,"Sep"]
[null,null,null,null,null,null,null,null,null,null,"Oct"]
[null,null,null,null,null,null,null,null,null,null,"Nov"]
["Comments :",null,null,null,null,null,null,null,null,null,"Dec"]
[null,null,null,null,null,null,null,null,null,null,"Annual",{"$f":"AVERAGE(L37:L48)","v":{"$error":"#DIV/0!"}},{"$f":"MAX(M37:M48)","v":0},{"$f":"AVERAGE(N37:N48)","v":{"$error":"#DIV/0!"}},{"$f":"MAX(O37:O48)","v":0}]
[]
[null,null,null,null,null,null,null,null,null,{"$f":"+A5","v":2025},"mg/Nm3","Monthly mean of half-hourly averages","Highest half- hourly average","Monthly mean of  daily averages","Highest daily average"]
[null,null,null,null,null,null,null,null,null,"A4","Jan"]
[null,null,null,null,null,null,null,null,null,null,"Feb"]
[null,null,null,null,null,null,null,null,null,null,"Mar"]
[null,null,null,null,null,null,null,null,null,null,"Apr"]
[null,null,null,null,null,null,null,null,null,null,"May"]
[null,null,null,null,null,null,null,null,null,null,"Jun"]
[null,null,null,null,null,null,null,null,null,null,"Jul"]
[null,null,null,null,null,null,null,null,null,null,"Aug"]
[null,null,null,null,null,null,null,null,null,null,"Sep"]
[null,null,null,null,null,null,null,null,null,null,"Oct"]
[null,null,null,null,null,null,null,null,null,null,"Nov"]
[null,null,null,null,null,null,null,null,null,null,"Dec"]
[null,null,null,null,null,null,null,null,null,null,"Annual",{"$f":"AVERAGE(L52:L63)","v":{"$error":"#DIV/0!"}},{"$f":"MAX(M52:M63)","v":0},{"$f":"AVERAGE(N52:N63)","v":{"$error":"#DIV/0!"}},{"$f":"MAX(O52:O63)","v":0}]
[]
[null,null,null,null,null,null,null,null,null,{"$f":"+A5","v":2025},"mg/Nm3","Monthly mean of half-hourly averages","Highest half- hourly average","Monthly mean of  daily averages","Highest daily average"]
[null,null,null,null,null,null,null,null,null,"A5","Jan"]
[null,null,null,null,null,null,null,null,null,null,"Feb"]
[null,null,null,null,null,null,null,null,null,null,"Mar"]
[null,null,null,null,null,null,null,null,null,null,"Apr"]
[null,null,null,null,null,null,null,null,null,null,"May"]
[null,null,null,null,null,null,null,null,null,null,"Jun"]
[null,null,null,null,null,null,null,null,null,null,"Jul"]
[null,null,null,null,null,null,null,null,null,null,"Aug"]
[null,null,null,null,null,null,null,null,null,null,"Sep"]
[null,null,null,null,null,null,null,null,null,null,"Oct"]
[null,null,null,null,null,null,null,null,null,null,"Nov"]
[null,null,null,null,null,null,null,null,null,null,"Dec"]
[null,null,null,null,null,null,null,null,null,null,"Annual",{"$f":"AVERAGE(L67:L78)","v":{"$error":"#DIV/0!"}},{"$f":"MAX(M67:M78)","v":0},{"$f":"AVERAGE(N67:N78)","v":{"$error":"#DIV/0!"}},{"$f":"MAX(O67:O78)","v":0}]

{"sheet":"SO2","index":15,"n_rows":79,"n_cols":17,"rows_kept":79,"cut":false,"hidden":false,"merged":[[3,16,7,18],[9,16,11,18],[12,16,15,18],[66,9,78,9],[4,1,4,3],[4,4,4,6],[4,9,4,14],[6,9,18,9],[21,9,33,9],[36,9,48,9],[47,0,47,6],[48,0,51,6],[51,9,63,9],[18,4,18,6]]}
[{"$f":"+'Cover Page'!$B$29","v":"Annual Performance Report 2025"},null,null,null,{"$f":"+'Cover Page'!$B$33","v":"Lakeside Energy from Waste Limited"}]
[]
["Monitoring of Sulphur dioxide emissions",null,null,"Whole Installation",null,null,"See  Notes in Cell Q3",null,null,{"$f":"+A3","v":"Monitoring of Sulphur dioxide emissions"},null,null,null,"Per Combustion Line",null,null,"Notes:"]
[null,null,null,null,null,null,null,null,null,null,null,null,null,null,null,null,"User to add logic to complete Whole installation, Table A5:G18. From the data in Per Combustion Line, Table J6:O79, subject to No. of lines installed"]
[{"$f":"+'Cover Page'!C39","v":2025},"1/2 Hourly Reference Periods",null,null,"Daily Reference Periods"]
["mg/Nm3","1/2 hourly SO2 ELV","Monthly mean of half-hourly averages","Highest half- hourly average","Daily SO2 ELV","Monthly mean of  daily averages","Highest daily average",null,null,{"$f":"+A5","v":2025},"mg/Nm3","Monthly mean of half-hourly averages","Highest half- hourly average","Monthly mean of  daily averages","Highest daily average"]
["Jan",200,{"$f":"(L7+L22)/2","v":6.8450000000000006},{"$f":"(M7+M22)/2","v":44.545000000000002},40,{"$f":"(N7+N22)/2","v":6.59},{"$f":"(O7+O22)/2","v":8.4},null,null,"A1","Jan",6.57,59.62,6.06,7.65]
["Feb",200,{"$f":"(L8+L23)/2","v":6.1150000000000002},{"$f":"(M8+M23)/2","v":32.914999999999999},40,{"$f":"(N8+N23)/2","v":6.1150000000000002},{"$f":"(O8+O23)/2","v":8.0549999999999997},null,null,null,"Feb",5.33,17.3,5.33,6.33]
["Mar",200,6.1050000000000004,42.594999999999999,40,6.1050000000000004,8.2399999999999984,null,null,null,"Mar",6.16,56.33,6.14,8.2799999999999994,null,"Whole Installation table A5:G18:"]
["Apr",200,6.24,100.375,40,6.1349999999999998,13.755000000000001,null,null,null,"Apr",5.83,21.09,5.77,8.66,null,"Mean: for 1/2 hourly and daily periods calculate mean of values across all operational combustion lines for the month"]
["May",200,5.8800000000000008,31.56,40,5.8250000000000002,7.3049999999999997,null,null,null,"May",5.4,37.979999999999997,5.29,6.85]
["Jun",200,5.8949999999999996,78.185000000000002,40,5.9,8.0399999999999991,null,null,null,"Jun",5.69,125.09,5.69,9.07]
["Jul",200,2.2599999999999998,15.82,40,2.2450000000000001,4.47,null,null,null,"Jul",1.33,23.35,1.31,4.13,null,"Maximum: for 1/2 hourly and daily periods use the highest value across all operational combustion lines for the month"]
["Aug",200,2.02,21.824999999999999,40,1.99,2.9849999999999999,null,null,null,"Aug",1.05,13.77,1.02,2.0699999999999998]
["Sep",200,3.2850000000000001,32.78,40,3.2850000000000001,5.47,null,null,null,"Sep",3.45,58.75,3.45,7.29]
["Oct",200,3.1950000000000003,65.734999999999999,40,3.1950000000000003,7.28,null,null,null,"Oct",3.27,104.51,3.27,8.4]
["Nov",200,3.8049999999999997,117.605,40,3.8049999999999997,10.5,null,null,null,"Nov",4.88,214.3,4.88,15.18]
["Dec",200,4.0350000000000001,108.33500000000001,40,4.0350000000000001,11.66,null,null,null,"Dec",4.6399999999999997,165.52,4.6399999999999997,14.14]
[null,null,null,null,null,null,null,null,null,null,"Annual",{"$f":"AVERAGE(L7:L18)","v":4.4666666666666668},{"$f":"MAX(M7:M18)","v":214.3},{"$f":"AVERAGE(N7:N18)","v":4.4041666666666677},{"$f":"MAX(O7:O18)","v":15.18}]
[]
[null,null,null,null,null,null,null,null,null,{"$f":"+A5","v":2025},"mg/Nm3","Monthly mean of half-hourly averages","Highest half- hourly average","Monthly mean of  daily averages","Highest daily average"]
[null,null,null,null,null,null,null,null,null,"A2","Jan",7.12,29.47,7.12,9.15]
[null,null,null,null,null,null,null,null,null,null,"Feb",6.9,48.53,6.9,9.7799999999999994]
[null,null,null,null,null,null,null,null,null,null,"Mar",6.05,28.86,6.07,8.1999999999999993]
[null,null,null,null,null,null,null,null,null,null,"Apr",6.65,179.66,6.5,18.850000000000001]
[null,null,null,null,null,null,null,null,null,null,"May",6.36,25.14,6.36,7.76]
[null,null,null,null,null,null,null,null,null,null,"Jun",6.1,31.28,6.11,7.01]
[null,null,null,null,null,null,null,null,null,null,"Jul",3.19,8.2899999999999991,3.18,4.8099999999999996]
[null,null,null,null,null,null,null,null,null,null,"Aug",2.99,29.88,2.96,3.9]
[null,null,null,null,null,null,null,null,null,null,"Sep",3.12,6.81,3.12,3.65]
[null,null,null,null,null,null,null,null,null,null,"Oct",3.12,26.96,3.12,6.16]
[null,null,null,null,null,null,null,null,null,null,"Nov",2.73,20.91,2.73,5.82]
[null,null,null,null,null,null,null,null,null,null,"Dec",3.43,51.15,3.43,9.18]
[null,null,null,null,null,null,null,null,null,null,"Annual",{"$f":"AVERAGE(L22:L33)","v":4.8133333333333326},{"$f":"MAX(M22:M33)","v":179.66},{"$f":"AVERAGE(N22:N33)","v":4.8},{"$f":"MAX(O22:O33)","v":18.850000000000001}]
[]
[null,null,null,null,null,null,null,null,null,{"$f":"+A5","v":2025},"mg/Nm3","Monthly mean of half-hourly averages","Highest half- hourly average","Monthly mean of  daily averages","Highest daily average"]
[null,null,null,null,null,null,null,null,null,"A3","Jan"]
[null,null,null,null,null,null,null,null,null,null,"Feb"]
[null,null,null,null,null,null,null,null,null,null,"Mar"]
[null,null,null,null,null,null,null,null,null,null,"Apr"]
[null,null,null,null,null,null,null,null,null,null,"May"]
[null,null,null,null,null,null,null,null,null,null,"Jun"]
[null,null,null,null,null,null,null,null,null,null,"Jul"]
[null,null,null,null,null,null,null,null,null,null,"Aug"]
[null,null,null,null,null,null,null,null,null,null,"Sep"]
[null,null,null,null,null,null,null,null,null,null,"Oct"]
[null,null,null,null,null,null,null,null,null,null,"Nov"]
["Comments :",null,null,null,null,null,null,null,null,null,"Dec"]
[null,null,null,null,null,null,null,null,null,null,"Annual",{"$f":"AVERAGE(L37:L48)","v":{"$error":"#DIV/0!"}},{"$f":"MAX(M37:M48)","v":0},{"$f":"AVERAGE(N37:N48)","v":{"$error":"#DIV/0!"}},{"$f":"MAX(O37:O48)","v":0}]
[]
[null,null,null,null,null,null,null,null,null,{"$f":"+A5","v":2025},"mg/Nm3","Monthly mean of half-hourly averages","Highest half- hourly average","Monthly mean of  daily averages","Highest daily average"]
[null,null,null,null,null,null,null,null,null,"A4","Jan"]
[null,null,null,null,null,null,null,null,null,null,"Feb"]
[null,null,null,null,null,null,null,null,null,null,"Mar"]
[null,null,null,null,null,null,null,null,null,null,"Apr"]
[null,null,null,null,null,null,null,null,null,null,"May"]
[null,null,null,null,null,null,null,null,null,null,"Jun"]
[null,null,null,null,null,null,null,null,null,null,"Jul"]
[null,null,null,null,null,null,null,null,null,null,"Aug"]
[null,null,null,null,null,null,null,null,null,null,"Sep"]
[null,null,null,null,null,null,null,null,null,null,"Oct"]
[null,null,null,null,null,null,null,null,null,null,"Nov"]
[null,null,null,null,null,null,null,null,null,null,"Dec"]
[null,null,null,null,null,null,null,null,null,null,"Annual",{"$f":"AVERAGE(L52:L63)","v":{"$error":"#DIV/0!"}},{"$f":"MAX(M52:M63)","v":0},{"$f":"AVERAGE(N52:N63)","v":{"$error":"#DIV/0!"}},{"$f":"MAX(O52:O63)","v":0}]
[]
[null,null,null,null,null,null,null,null,null,{"$f":"+A5","v":2025},"mg/Nm3","Monthly mean of half-hourly averages","Highest half- hourly average","Monthly mean of  daily averages","Highest daily average"]
[null,null,null,null,null,null,null,null,null,"A5","Jan"]
[null,null,null,null,null,null,null,null,null,null,"Feb"]
[null,null,null,null,null,null,null,null,null,null,"Mar"]
[null,null,null,null,null,null,null,null,null,null,"Apr"]
[null,null,null,null,null,null,null,null,null,null,"May"]
[null,null,null,null,null,null,null,null,null,null,"Jun"]
[null,null,null,null,null,null,null,null,null,null,"Jul"]
[null,null,null,null,null,null,null,null,null,null,"Aug"]
[null,null,null,null,null,null,null,null,null,null,"Sep"]
[null,null,null,null,null,null,null,null,null,null,"Oct"]
[null,null,null,null,null,null,null,null,null,null,"Nov"]
[null,null,null,null,null,null,null,null,null,null,"Dec"]
[null,null,null,null,null,null,null,null,null,null,"Annual",{"$f":"AVERAGE(L67:L78)","v":{"$error":"#DIV/0!"}},{"$f":"MAX(M67:M78)","v":0},{"$f":"AVERAGE(N67:N78)","v":{"$error":"#DIV/0!"}},{"$f":"MAX(O67:O78)","v":0}]

{"sheet":"NOx","index":16,"n_rows":79,"n_cols":17,"rows_kept":79,"cut":false,"hidden":false,"merged":[[3,16,7,18],[9,16,11,18],[12,16,15,18],[66,9,78,9],[4,1,4,3],[4,4,4,6],[4,9,4,14],[6,9,18,9],[21,9,33,9],[36,9,48,9],[47,0,47,6],[48,0,51,6],[51,9,63,9],[18,4,18,6]]}
[{"$f":"+'Cover Page'!$B$29","v":"Annual Performance Report 2025"},null,null,null,{"$f":"+'Cover Page'!$B$33","v":"Lakeside Energy from Waste Limited"}]
[]
["Monitoring of Oxides of Nitrogen emissions",null,null,"Whole Installation",null,null,"See  Notes in Cell Q3",null,null,{"$f":"+A3","v":"Monitoring of Oxides of Nitrogen emissions"},null,null,null,"Per Combustion Line",null,null,"Notes:"]
[null,null,null,null,null,null,null,null,null,null,null,null,null,null,null,null,"User to add logic to complete Whole installation, Table A5:G18. From the data in Per Combustion Line, Table J6:O79, subject to No. of lines installed"]
[{"$f":"+'Cover Page'!C39","v":2025},"1/2 Hourly Reference Periods",null,null,"Daily Reference Periods"]
["mg/Nm3","1/2 hourly NOx ELV","Monthly mean of half-hourly averages","Highest half- hourly average","Daily NOx ELV","Monthly mean of  daily averages","Highest daily average",null,null,{"$f":"+A5","v":2025},"mg/Nm3","Monthly mean of half-hourly averages","Highest half- hourly average","Monthly mean of  daily averages","Highest daily average"]
["Jan",400,{"$f":"(L7+L22)/2","v":156.27499999999998},{"$f":"(M7+M22)/2","v":202.85},180,{"$f":"(N7+N22)/2","v":156.26999999999998},{"$f":"(O7+O22)/2","v":169.91499999999999},null,null,"A1","Jan",158.51,194.17,158.51,167.89]
["Feb",400,{"$f":"(L8+L23)/2","v":149.53500000000003},230.2,180,{"$f":"(N8+N23)/2","v":149.51999999999998},160.85000000000002,null,null,null,"Feb",144.58000000000001,194.4,144.56,161.09]
["Mar",400,{"$f":"(L9+L24)/2","v":148.42000000000002},182.17500000000001,180,{"$f":"(N9+N24)/2","v":148.47499999999999},157.655,null,null,null,"Mar",143.53,182.73,143.51,157.22999999999999,null,"Whole Installation table A5:G18:"]
["Apr",400,{"$f":"(L10+L25)/2","v":151.16999999999999},225.73500000000001,180,{"$f":"(N10+N25)/2","v":151.85500000000002},167.14,null,null,null,"Apr",148.13999999999999,223.4,148.28,176.28,null,"Mean: for 1/2 hourly and daily periods calculate mean of values across all operational combustion lines for the month"]
["May",400,{"$f":"(L11+L26)/2","v":147.91500000000002},185.84,180,{"$f":"(N11+N26)/2","v":147.73000000000002},157.505,null,null,null,"May",141.22,196.9,140.85,154.38999999999999]
["Jun",400,{"$f":"(L12+L27)/2","v":147.63999999999999},181.89999999999998,180,{"$f":"(N12+N27)/2","v":147.64499999999998},158.18,null,null,null,"Jun",140.56,177.7,140.56,156.97]
["Jul",400,{"$f":"(L13+L28)/2","v":138.83999999999997},169.89500000000001,180,{"$f":"(N13+N28)/2","v":138.76},153.6,null,null,null,"Jul",136.54,174.21,136.38,158.69,null,"Maximum: for 1/2 hourly and daily periods use the highest value across all operational combustion lines for the month"]
["Aug",400,{"$f":"(L14+L29)/2","v":152.32999999999998},192.52499999999998,180,{"$f":"(N14+N29)/2","v":152.26},161.755,null,null,null,"Aug",157.91,198.01,157.80000000000001,167.39]
["Sep",400,{"$f":"(L15+L30)/2","v":153.88499999999999},215.36,180,{"$f":"(N15+N30)/2","v":154.04500000000002},163.405,null,null,null,"Sep",157.84,254.74,158.16,167.51]
["Oct",400,{"$f":"(L16+L31)/2","v":152.14999999999998},176.495,180,{"$f":"(N16+N31)/2","v":152.14999999999998},159.655,null,null,null,"Oct",154.97999999999999,177.26,154.97999999999999,161.22999999999999]
["Nov",400,{"$f":"(L17+L32)/2","v":157.55500000000001},186.45,180,{"$f":"(N17+N32)/2","v":157.55500000000001},167.56,null,null,null,"Nov",160.91999999999999,180.85,160.91999999999999,169.05]
["Dec",400,{"$f":"(L18+L33)/2","v":157.05500000000001},194.565,180,{"$f":"(N18+N33)/2","v":157.05500000000001},166.89499999999998,null,null,null,"Dec",158.02000000000001,197.35,158.02000000000001,169.13]
[null,null,null,null,null,null,null,null,null,null,"Annual",{"$f":"AVERAGE(L7:L18)","v":150.22916666666666},{"$f":"MAX(M7:M18)","v":254.74},{"$f":"AVERAGE(N7:N18)","v":150.21083333333334},{"$f":"MAX(O7:O18)","v":176.28}]
[]
[null,null,null,null,null,null,null,null,null,{"$f":"+A5","v":2025},"mg/Nm3","Monthly mean of half-hourly averages","Highest half- hourly average","Monthly mean of  daily averages","Highest daily average"]
[null,null,null,null,null,null,null,null,null,"A2","Jan",154.04,211.53,154.03,171.94]
[null,null,null,null,null,null,null,null,null,null,"Feb",154.49,266,154.47999999999999,160.61000000000001]
[null,null,null,null,null,null,null,null,null,null,"Mar",153.31,181.62,153.44,158.08000000000001]
[null,null,null,null,null,null,null,null,null,null,"Apr",154.19999999999999,228.07,155.43,158]
[null,null,null,null,null,null,null,null,null,null,"May",154.61000000000001,174.78,154.61000000000001,160.62]
[null,null,null,null,null,null,null,null,null,null,"Jun",154.72,186.1,154.72999999999999,159.38999999999999]
[null,null,null,null,null,null,null,null,null,null,"Jul",141.13999999999999,165.58,141.13999999999999,148.51]
[null,null,null,null,null,null,null,null,null,null,"Aug",146.75,187.04,146.72,156.12]
[null,null,null,null,null,null,null,null,null,null,"Sep",149.93,175.98,149.93,159.30000000000001]
[null,null,null,null,null,null,null,null,null,null,"Oct",149.32,175.73,149.32,158.08000000000001]
[null,null,null,null,null,null,null,null,null,null,"Nov",154.19,192.05,154.19,166.07]
[null,null,null,null,null,null,null,null,null,null,"Dec",156.09,191.78,156.09,164.66]
[null,null,null,null,null,null,null,null,null,null,"Annual",{"$f":"AVERAGE(L22:L33)","v":151.89916666666667},{"$f":"MAX(M22:M33)","v":266},{"$f":"AVERAGE(N22:N33)","v":152.00916666666669},{"$f":"MAX(O22:O33)","v":171.94}]
[]
[null,null,null,null,null,null,null,null,null,{"$f":"+A5","v":2025},"mg/Nm3","Monthly mean of half-hourly averages","Highest half- hourly average","Monthly mean of  daily averages","Highest daily average"]
[null,null,null,null,null,null,null,null,null,"A3","Jan"]
[null,null,null,null,null,null,null,null,null,null,"Feb"]
[null,null,null,null,null,null,null,null,null,null,"Mar"]
[null,null,null,null,null,null,null,null,null,null,"Apr"]
[null,null,null,null,null,null,null,null,null,null,"May"]
[null,null,null,null,null,null,null,null,null,null,"Jun"]
[null,null,null,null,null,null,null,null,null,null,"Jul"]
[null,null,null,null,null,null,null,null,null,null,"Aug"]
[null,null,null,null,null,null,null,null,null,null,"Sep"]
[null,null,null,null,null,null,null,null,null,null,"Oct"]
[null,null,null,null,null,null,null,null,null,null,"Nov"]
["Comments :",null,null,null,null,null,null,null,null,null,"Dec"]
[null,null,null,null,null,null,null,null,null,null,"Annual",{"$f":"AVERAGE(L37:L48)","v":{"$error":"#DIV/0!"}},{"$f":"MAX(M37:M48)","v":0},{"$f":"AVERAGE(N37:N48)","v":{"$error":"#DIV/0!"}},{"$f":"MAX(O37:O48)","v":0}]
[]
[null,null,null,null,null,null,null,null,null,{"$f":"+A5","v":2025},"mg/Nm3","Monthly mean of half-hourly averages","Highest half- hourly average","Monthly mean of  daily averages","Highest daily average"]
[null,null,null,null,null,null,null,null,null,"A4","Jan"]
[null,null,null,null,null,null,null,null,null,null,"Feb"]
[null,null,null,null,null,null,null,null,null,null,"Mar"]
[null,null,null,null,null,null,null,null,null,null,"Apr"]
[null,null,null,null,null,null,null,null,null,null,"May"]
[null,null,null,null,null,null,null,null,null,null,"Jun"]
[null,null,null,null,null,null,null,null,null,null,"Jul"]
[null,null,null,null,null,null,null,null,null,null,"Aug"]
[null,null,null,null,null,null,null,null,null,null,"Sep"]
[null,null,null,null,null,null,null,null,null,null,"Oct"]
[null,null,null,null,null,null,null,null,null,null,"Nov"]
[null,null,null,null,null,null,null,null,null,null,"Dec"]
[null,null,null,null,null,null,null,null,null,null,"Annual",{"$f":"AVERAGE(L52:L63)","v":{"$error":"#DIV/0!"}},{"$f":"MAX(M52:M63)","v":0},{"$f":"AVERAGE(N52:N63)","v":{"$error":"#DIV/0!"}},{"$f":"MAX(O52:O63)","v":0}]
[]
[null,null,null,null,null,null,null,null,null,{"$f":"+A5","v":2025},"mg/Nm3","Monthly mean of half-hourly averages","Highest half- hourly average","Monthly mean of  daily averages","Highest daily average"]
[null,null,null,null,null,null,null,null,null,"A5","Jan"]
[null,null,null,null,null,null,null,null,null,null,"Feb"]
[null,null,null,null,null,null,null,null,null,null,"Mar"]
[null,null,null,null,null,null,null,null,null,null,"Apr"]
[null,null,null,null,null,null,null,null,null,null,"May"]
[null,null,null,null,null,null,null,null,null,null,"Jun"]
[null,null,null,null,null,null,null,null,null,null,"Jul"]
[null,null,null,null,null,null,null,null,null,null,"Aug"]
[null,null,null,null,null,null,null,null,null,null,"Sep"]
[null,null,null,null,null,null,null,null,null,null,"Oct"]
[null,null,null,null,null,null,null,null,null,null,"Nov"]
[null,null,null,null,null,null,null,null,null,null,"Dec"]
[null,null,null,null,null,null,null,null,null,null,"Annual",{"$f":"AVERAGE(L67:L78)","v":{"$error":"#DIV/0!"}},{"$f":"MAX(M67:M78)","v":0},{"$f":"AVERAGE(N67:N78)","v":{"$error":"#DIV/0!"}},{"$f":"MAX(O67:O78)","v":0}]

{"sheet":"TOC","index":17,"n_rows":79,"n_cols":17,"rows_kept":79,"cut":false,"hidden":false,"merged":[[3,16,7,18],[9,16,11,18],[12,16,15,18],[66,9,78,9],[4,1,4,3],[4,4,4,6],[4,9,4,14],[6,9,18,9],[21,9,33,9],[36,9,48,9],[47,0,47,6],[48,0,51,6],[51,9,63,9]]}
[{"$f":"+'Cover Page'!$B$29","v":"Annual Performance Report 2025"},null,null,null,{"$f":"+'Cover Page'!$B$33","v":"Lakeside Energy from Waste Limited"}]
[]
["Monitoring of Total organic carbon emissions",null,null,"Whole Installation",null,null,"See  Notes in Cell Q3",null,null,{"$f":"+A3","v":"Monitoring of Total organic carbon emissions"},null,null,null,"Per Combustion Line",null,null,"Notes:"]
[null,null,null,null,null,null,null,null,null,null,null,null,null,null,null,null,"User to add logic to complete Whole installation, Table A5:G18. From the data in Per Combustion Line, Table J6:O79, subject to No. of lines installed"]
[{"$f":"+'Cover Page'!C39","v":2025},"1/2 Hourly Reference Periods",null,null,"Daily Reference Periods"]
["mg/Nm3","1/2 hourly TOC ELV","Monthly mean of half-hourly averages","Highest half- hourly average","Daily TOC ELV","Monthly mean of  daily averages","Highest daily average",null,null,{"$f":"+A5","v":2025},"mg/Nm3","Monthly mean of half-hourly averages","Highest half- hourly average","Monthly mean of  daily averages","Highest daily average"]
["Jan",20,{"$f":"(L7+L22)/2","v":0.30500000000000005},{"$f":"(M7+M22)/2","v":6.49},10,{"$f":"(N7+N22)/2","v":0.30000000000000004},{"$f":"(O7+O22)/2","v":0.59},null,null,"A1","Jan",0.33,6.2,0.32,0.6]
["Feb",20,{"$f":"(L8+L23)/2","v":0.32},6.7799999999999994,10,{"$f":"(N8+N23)/2","v":0.32},0.57000000000000006,null,null,null,"Feb",0.31,6.27,0.31,0.6]
["Mar",20,{"$f":"(L9+L24)/2","v":0.35499999999999998},5.2949999999999999,10,{"$f":"(N9+N24)/2","v":0.35499999999999998},0.58000000000000007,null,null,null,"Mar",0.33,5.08,0.33,0.56000000000000005,null,"Whole Installation table A5:G18:"]
["Apr",20,{"$f":"(L10+L25)/2","v":0.55499999999999994},14.879999999999999,10,{"$f":"(N10+N25)/2","v":0.38},2.0049999999999999,null,null,null,"Apr",0.26,13.02,0.1,0.27,null,"Mean: for 1/2 hourly and daily periods calculate mean of values across all operational combustion lines for the month"]
["May",20,{"$f":"(L11+L26)/2","v":0.125},9.4250000000000007,10,{"$f":"(N11+N26)/2","v":0.19500000000000001},0.72,null,null,null,"May",-0.03,5.85,0.11,0.71]
["Jun",20,{"$f":"(L12+L27)/2","v":0.19500000000000001},5.54,10,{"$f":"(N12+N27)/2","v":0.19500000000000001},0.37,null,null,null,"Jun",0.12,5.29,0.12,0.27]
["Jul",20,{"$f":"(L13+L28)/2","v":-0.47499999999999998},10.605,10,{"$f":"(N13+N28)/2","v":-0.46499999999999997},-0.14000000000000001,null,null,null,"Jul",-0.54,10.26,-0.51,-0.15,null,"Maximum: for 1/2 hourly and daily periods use the highest value across all operational combustion lines for the month"]
["Aug",20,{"$f":"(L14+L29)/2","v":-0.44},6.84,10,{"$f":"(N14+N29)/2","v":-0.43999999999999995},-0.20500000000000002,null,null,null,"Aug",-0.46,5.91,-0.47,-0.26]
["Sep",20,{"$f":"(L15+L30)/2","v":-0.51},5.16,10,{"$f":"(N15+N30)/2","v":-0.51500000000000001},-0.24000000000000002,null,null,null,"Sep",-0.61,5.55,-0.62,-0.28000000000000003]
["Oct",20,{"$f":"(L16+L31)/2","v":-0.39},5.29,10,{"$f":"(N16+N31)/2","v":-0.39},0.31500000000000006,null,null,null,"Oct",-0.43,5.32,-0.43,-0.18]
["Nov",20,{"$f":"(L17+L32)/2","v":-0.14499999999999999},5.83,10,{"$f":"(N17+N32)/2","v":-0.14499999999999999},0.30500000000000005,null,null,null,"Nov",-0.62,5.5,-0.62,-0.46]
["Dec",20,{"$f":"(L18+L33)/2","v":0.125},5.9749999999999996,10,{"$f":"(N18+N33)/2","v":0.125},1.405,null,null,null,"Dec",-0.65,4.99,-0.65,-0.41]
[null,null,null,null,null,null,null,null,null,null,"Annual",{"$f":"AVERAGE(L7:L18)","v":-0.16583333333333336},{"$f":"MAX(M7:M18)","v":13.02},{"$f":"AVERAGE(N7:N18)","v":-0.16749999999999998},{"$f":"MAX(O7:O18)","v":0.71}]
[]
[null,null,null,null,null,null,null,null,null,{"$f":"+A5","v":2025},"mg/Nm3","Monthly mean of half-hourly averages","Highest half- hourly average","Monthly mean of  daily averages","Highest daily average"]
[null,null,null,null,null,null,null,null,null,"A2","Jan",0.28000000000000003,6.78,0.28000000000000003,0.57999999999999996]
[null,null,null,null,null,null,null,null,null,null,"Feb",0.33,7.29,0.33,0.54]
[null,null,null,null,null,null,null,null,null,null,"Mar",0.38,5.51,0.38,0.6]
[null,null,null,null,null,null,null,null,null,null,"Apr",0.85,16.739999999999998,0.66,3.74]
[null,null,null,null,null,null,null,null,null,null,"May",0.28000000000000003,13,0.28000000000000003,0.73]
[null,null,null,null,null,null,null,null,null,null,"Jun",0.27,5.79,0.27,0.47]
[null,null,null,null,null,null,null,null,null,null,"Jul",-0.41,10.95,-0.42,-0.13]
[null,null,null,null,null,null,null,null,null,null,"Aug",-0.42,7.77,-0.41,-0.15]
[null,null,null,null,null,null,null,null,null,null,"Sep",-0.41,4.7699999999999996,-0.41,-0.2]
[null,null,null,null,null,null,null,null,null,null,"Oct",-0.35,5.26,-0.35,0.81]
[null,null,null,null,null,null,null,null,null,null,"Nov",0.33,6.16,0.33,1.07]
[null,null,null,null,null,null,null,null,null,null,"Dec",0.9,6.96,0.9,3.22]
[null,null,null,null,null,null,null,null,null,null,"Annual",{"$f":"AVERAGE(L22:L33)","v":0.16916666666666669},{"$f":"MAX(M22:M33)","v":16.739999999999998},{"$f":"AVERAGE(N22:N33)","v":0.15333333333333335},{"$f":"MAX(O22:O33)","v":3.74}]
[]
[null,null,null,null,null,null,null,null,null,{"$f":"+A5","v":2025},"mg/Nm3","Monthly mean of half-hourly averages","Highest half- hourly average","Monthly mean of  daily averages","Highest daily average"]
[null,null,null,null,null,null,null,null,null,"A3","Jan"]
[null,null,null,null,null,null,null,null,null,null,"Feb"]
[null,null,null,null,null,null,null,null,null,null,"Mar"]
[null,null,null,null,null,null,null,null,null,null,"Apr"]
[null,null,null,null,null,null,null,null,null,null,"May"]
[null,null,null,null,null,null,null,null,null,null,"Jun"]
[null,null,null,null,null,null,null,null,null,null,"Jul"]
[null,null,null,null,null,null,null,null,null,null,"Aug"]
[null,null,null,null,null,null,null,null,null,null,"Sep"]
[null,null,null,null,null,null,null,null,null,null,"Oct"]
[null,null,null,null,null,null,null,null,null,null,"Nov"]
["Comments :",null,null,null,null,null,null,null,null,null,"Dec"]
[null,null,null,null,null,null,null,null,null,null,"Annual",{"$f":"AVERAGE(L37:L48)","v":{"$error":"#DIV/0!"}},{"$f":"MAX(M37:M48)","v":0},{"$f":"AVERAGE(N37:N48)","v":{"$error":"#DIV/0!"}},{"$f":"MAX(O37:O48)","v":0}]
[]
[null,null,null,null,null,null,null,null,null,{"$f":"+A5","v":2025},"mg/Nm3","Monthly mean of half-hourly averages","Highest half- hourly average","Monthly mean of  daily averages","Highest daily average"]
[null,null,null,null,null,null,null,null,null,"A4","Jan"]
[null,null,null,null,null,null,null,null,null,null,"Feb"]
[null,null,null,null,null,null,null,null,null,null,"Mar"]
[null,null,null,null,null,null,null,null,null,null,"Apr"]
[null,null,null,null,null,null,null,null,null,null,"May"]
[null,null,null,null,null,null,null,null,null,null,"Jun"]
[null,null,null,null,null,null,null,null,null,null,"Jul"]
[null,null,null,null,null,null,null,null,null,null,"Aug"]
[null,null,null,null,null,null,null,null,null,null,"Sep"]
[null,null,null,null,null,null,null,null,null,null,"Oct"]
[null,null,null,null,null,null,null,null,null,null,"Nov"]
[null,null,null,null,null,null,null,null,null,null,"Dec"]
[null,null,null,null,null,null,null,null,null,null,"Annual",{"$f":"AVERAGE(L52:L63)","v":{"$error":"#DIV/0!"}},{"$f":"MAX(M52:M63)","v":0},{"$f":"AVERAGE(N52:N63)","v":{"$error":"#DIV/0!"}},{"$f":"MAX(O52:O63)","v":0}]
[]
[null,null,null,null,null,null,null,null,null,{"$f":"+A5","v":2025},"mg/Nm3","Monthly mean of half-hourly averages","Highest half- hourly average","Monthly mean of  daily averages","Highest daily average"]
[null,null,null,null,null,null,null,null,null,"A5","Jan"]
[null,null,null,null,null,null,null,null,null,null,"Feb"]
[null,null,null,null,null,null,null,null,null,null,"Mar"]
[null,null,null,null,null,null,null,null,null,null,"Apr"]
[null,null,null,null,null,null,null,null,null,null,"May"]
[null,null,null,null,null,null,null,null,null,null,"Jun"]
[null,null,null,null,null,null,null,null,null,null,"Jul"]
[null,null,null,null,null,null,null,null,null,null,"Aug"]
[null,null,null,null,null,null,null,null,null,null,"Sep"]
[null,null,null,null,null,null,null,null,null,null,"Oct"]
[null,null,null,null,null,null,null,null,null,null,"Nov"]
[null,null,null,null,null,null,null,null,null,null,"Dec"]
[null,null,null,null,null,null,null,null,null,null,"Annual",{"$f":"AVERAGE(L67:L78)","v":{"$error":"#DIV/0!"}},{"$f":"MAX(M67:M78)","v":0},{"$f":"AVERAGE(N67:N78)","v":{"$error":"#DIV/0!"}},{"$f":"MAX(O67:O78)","v":0}]

{"sheet":"Particulates","index":18,"n_rows":79,"n_cols":17,"rows_kept":79,"cut":false,"hidden":false,"merged":[[4,16,8,18],[10,16,12,18],[13,16,16,18],[66,9,78,9],[4,1,4,3],[4,4,4,6],[4,9,4,14],[6,9,18,9],[21,9,33,9],[36,9,48,9],[47,0,47,6],[48,0,51,6],[51,9,63,9],[18,4,18,6]]}
[{"$f":"+'Cover Page'!$B$29","v":"Annual Performance Report 2025"},null,null,null,{"$f":"+'Cover Page'!$B$33","v":"Lakeside Energy from Waste Limited"}]
[]
["Monitoring of Particulate matter emissions",null,null,"Whole Installation",null,null,"See  Notes in Cell Q3",null,null,{"$f":"+A3","v":"Monitoring of Particulate matter emissions"},null,null,null,"Per Combustion Line",null,null,"Notes:"]
[]
[{"$f":"+'Cover Page'!C39","v":2025},"1/2 Hourly Reference Periods",null,null,"Daily Reference Periods",null,null,null,null,null,null,null,null,null,null,null,"User to add logic to complete Whole installation, Table A5:G18. From the data in Per Combustion Line, Table J6:O79, subject to No. of lines installed"]
["mg/Nm3","1/2 hourly PM ELV","Monthly mean of half-hourly averages","Highest half- hourly average","Daily PM ELV","Monthly mean of  daily averages","Highest daily average",null,null,{"$f":"+A5","v":2025},"mg/Nm3","Monthly mean of half-hourly averages","Highest half- hourly average","Monthly mean of  daily averages","Highest daily average"]
["Jan",30,{"$f":"(L7+L22)/2","v":1.3250000000000002},{"$f":"(M7+M22)/2","v":60.234999999999999},5,{"$f":"(N7+N22)/2","v":1.3399999999999999},{"$f":"(O7+O22)/2","v":10.87},null,null,"A1","Jan",2.37,119.19,2.4,21.36]
["Feb",30,{"$f":"(L8+L23)/2","v":0.92},6.01,5,{"$f":"(N8+N23)/2","v":0.91500000000000004},2.7749999999999999,null,null,null,"Feb",1.36,3.99,1.36,2.13]
["Mar",30,{"$f":"(L9+L24)/2","v":0.68500000000000005},4.915,5,{"$f":"(N9+N24)/2","v":0.69000000000000006},1.19,null,null,null,"Mar",1.08,9.2100000000000009,1.0900000000000001,2.06]
["Apr",30,{"$f":"(L10+L25)/2","v":0.79},6.5,5,{"$f":"(N10+N25)/2","v":0.745},2.5049999999999999,null,null,null,"Apr",0.98,10.52,0.92,1.86,null,"Whole Installation table A5:G18:"]
["May",30,{"$f":"(L11+L26)/2","v":0.53},3.2549999999999999,5,{"$f":"(N11+N26)/2","v":0.52500000000000002},1.6400000000000001,null,null,null,"May",0.79,5.85,0.78,2.91,null,"Mean: for 1/2 hourly and daily periods calculate mean of values across all operational combustion lines for the month"]
["Jun",30,{"$f":"(L12+L27)/2","v":0.55000000000000004},8.0050000000000008,5,{"$f":"(N12+N27)/2","v":0.55000000000000004},2.16,null,null,null,"Jun",0.85,14.3,0.85,4]
["Jul",30,{"$f":"(L13+L28)/2","v":0.87},6.3849999999999998,5,{"$f":"(N13+N28)/2","v":0.87},1.825,null,null,null,"Jul",1.5,10.89,1.51,3.29]
["Aug",30,{"$f":"(L14+L29)/2","v":0.35499999999999998},3.3549999999999995,5,{"$f":"(N14+N29)/2","v":0.35499999999999998},2.31,null,null,null,"Aug",0.44,5.56,0.44,3.82,null,"Maximum: for 1/2 hourly and daily periods use the highest value across all operational combustion lines for the month"]
["Sep",30,{"$f":"(L15+L30)/2","v":0.64500000000000002},13.450000000000001,5,{"$f":"(N15+N30)/2","v":0.66500000000000004},2.9950000000000001,null,null,null,"Sep",0.98,25.89,1.02,5.18]
["Oct",30,{"$f":"(L16+L31)/2","v":0.7},5.0999999999999996,5,{"$f":"(N16+N31)/2","v":0.7},1.69,null,null,null,"Oct",1.1299999999999999,9.66,1.1299999999999999,3.04]
["Nov",30,{"$f":"(L17+L32)/2","v":0.315},1.4549999999999998,5,{"$f":"(N17+N32)/2","v":0.315},0.42499999999999999,null,null,null,"Nov",0.3,0.61,0.3,0.37]
["Dec",30,{"$f":"(L18+L33)/2","v":0.61499999999999999},16.684999999999999,5,{"$f":"(N18+N33)/2","v":0.61499999999999999},1.51,null,null,null,"Dec",0.87,31.66,0.87,1.92]
[null,null,null,null,null,null,null,null,null,null,"Annual",{"$f":"AVERAGE(L7:L18)","v":1.0541666666666667},{"$f":"MAX(M7:M18)","v":119.19},{"$f":"AVERAGE(N7:N18)","v":1.0558333333333334},{"$f":"MAX(O7:O18)","v":21.36}]
[]
[null,null,null,null,null,null,null,null,null,{"$f":"+A5","v":2025},"mg/Nm3","Monthly mean of half-hourly averages","Highest half- hourly average","Monthly mean of  daily averages","Highest daily average"]
[null,null,null,null,null,null,null,null,null,"A2","Jan",0.28000000000000003,1.28,0.28000000000000003,0.38]
[null,null,null,null,null,null,null,null,null,null,"Feb",0.48,8.0299999999999994,0.47,3.42]
[null,null,null,null,null,null,null,null,null,null,"Mar",0.28999999999999998,0.62,0.28999999999999998,0.32]
[null,null,null,null,null,null,null,null,null,null,"Apr",0.6,2.48,0.56999999999999995,3.15]
[null,null,null,null,null,null,null,null,null,null,"May",0.27,0.66,0.27,0.37]
[null,null,null,null,null,null,null,null,null,null,"Jun",0.25,1.71,0.25,0.32]
[null,null,null,null,null,null,null,null,null,null,"Jul",0.24,1.88,0.23,0.36]
[null,null,null,null,null,null,null,null,null,null,"Aug",0.27,1.1499999999999999,0.27,0.8]
[null,null,null,null,null,null,null,null,null,null,"Sep",0.31,1.01,0.31,0.81]
[null,null,null,null,null,null,null,null,null,null,"Oct",0.27,0.54,0.27,0.34]
[null,null,null,null,null,null,null,null,null,null,"Nov",0.33,2.2999999999999998,0.33,0.48]
[null,null,null,null,null,null,null,null,null,null,"Dec",0.36,1.71,0.36,1.1000000000000001]
[null,null,null,null,null,null,null,null,null,null,"Annual",{"$f":"AVERAGE(L22:L33)","v":0.32916666666666666},{"$f":"MAX(M22:M33)","v":8.0299999999999994},{"$f":"AVERAGE(N22:N33)","v":0.32500000000000001},{"$f":"MAX(O22:O33)","v":3.42}]
[]
[null,null,null,null,null,null,null,null,null,{"$f":"+A5","v":2025},"mg/Nm3","Monthly mean of half-hourly averages","Highest half- hourly average","Monthly mean of  daily averages","Highest daily average"]
[null,null,null,null,null,null,null,null,null,"A3","Jan"]
[null,null,null,null,null,null,null,null,null,null,"Feb"]
[null,null,null,null,null,null,null,null,null,null,"Mar"]
[null,null,null,null,null,null,null,null,null,null,"Apr"]
[null,null,null,null,null,null,null,null,null,null,"May"]
[null,null,null,null,null,null,null,null,null,null,"Jun"]
[null,null,null,null,null,null,null,null,null,null,"Jul"]
[null,null,null,null,null,null,null,null,null,null,"Aug"]
[null,null,null,null,null,null,null,null,null,null,"Sep"]
[null,null,null,null,null,null,null,null,null,null,"Oct"]
[null,null,null,null,null,null,null,null,null,null,"Nov"]
["Comments :",null,null,null,null,null,null,null,null,null,"Dec"]
[null,null,null,null,null,null,null,null,null,null,"Annual",{"$f":"AVERAGE(L37:L48)","v":{"$error":"#DIV/0!"}},{"$f":"MAX(M37:M48)","v":0},{"$f":"AVERAGE(N37:N48)","v":{"$error":"#DIV/0!"}},{"$f":"MAX(O37:O48)","v":0}]
[]
[null,null,null,null,null,null,null,null,null,{"$f":"+A5","v":2025},"mg/Nm3","Monthly mean of half-hourly averages","Highest half- hourly average","Monthly mean of  daily averages","Highest daily average"]
[null,null,null,null,null,null,null,null,null,"A4","Jan"]
[null,null,null,null,null,null,null,null,null,null,"Feb"]
[null,null,null,null,null,null,null,null,null,null,"Mar"]
[null,null,null,null,null,null,null,null,null,null,"Apr"]
[null,null,null,null,null,null,null,null,null,null,"May"]
[null,null,null,null,null,null,null,null,null,null,"Jun"]
[null,null,null,null,null,null,null,null,null,null,"Jul"]
[null,null,null,null,null,null,null,null,null,null,"Aug"]
[null,null,null,null,null,null,null,null,null,null,"Sep"]
[null,null,null,null,null,null,null,null,null,null,"Oct"]
[null,null,null,null,null,null,null,null,null,null,"Nov"]
[null,null,null,null,null,null,null,null,null,null,"Dec"]
[null,null,null,null,null,null,null,null,null,null,"Annual",{"$f":"AVERAGE(L52:L63)","v":{"$error":"#DIV/0!"}},{"$f":"MAX(M52:M63)","v":0},{"$f":"AVERAGE(N52:N63)","v":{"$error":"#DIV/0!"}},{"$f":"MAX(O52:O63)","v":0}]
[]
[null,null,null,null,null,null,null,null,null,{"$f":"+A5","v":2025},"mg/Nm3","Monthly mean of half-hourly averages","Highest half- hourly average","Monthly mean of  daily averages","Highest daily average"]
[null,null,null,null,null,null,null,null,null,"A5","Jan"]
[null,null,null,null,null,null,null,null,null,null,"Feb"]
[null,null,null,null,null,null,null,null,null,null,"Mar"]
[null,null,null,null,null,null,null,null,null,null,"Apr"]
[null,null,null,null,null,null,null,null,null,null,"May"]
[null,null,null,null,null,null,null,null,null,null,"Jun"]
[null,null,null,null,null,null,null,null,null,null,"Jul"]
[null,null,null,null,null,null,null,null,null,null,"Aug"]
[null,null,null,null,null,null,null,null,null,null,"Sep"]
[null,null,null,null,null,null,null,null,null,null,"Oct"]
[null,null,null,null,null,null,null,null,null,null,"Nov"]
[null,null,null,null,null,null,null,null,null,null,"Dec"]
[null,null,null,null,null,null,null,null,null,null,"Annual",{"$f":"AVERAGE(L67:L78)","v":{"$error":"#DIV/0!"}},{"$f":"MAX(M67:M78)","v":0},{"$f":"AVERAGE(N67:N78)","v":{"$error":"#DIV/0!"}},{"$f":"MAX(O67:O78)","v":0}]

{"sheet":"CO 0.5 hourly","index":19,"n_rows":82,"n_cols":17,"rows_kept":82,"cut":false,"hidden":false,"merged":[[4,0,5,6],[6,16,10,18],[12,16,14,18],[15,16,18,18],[69,9,81,9],[7,1,7,3],[7,4,7,6],[7,9,7,14],[9,9,21,9],[24,9,36,9],[39,9,51,9],[50,0,50,6],[51,0,54,6],[54,9,66,9]]}
[{"$f":"+'Cover Page'!$B$29","v":"Annual Performance Report 2025"},null,null,null,{"$f":"+'Cover Page'!$B$33","v":"Lakeside Energy from Waste Limited"}]
[]
["Monitoring of Carbon Monoxide (half hourly)",null,null,"Whole Installation",null,null,"See  Notes in Cell Q3",null,null,{"$f":"+A3","v":"Monitoring of Carbon Monoxide (half hourly)"},null,null,null,"Per Combustion Line",null,null,"Notes:"]
[]
["Please complete this tab for your plant if you have 1/2 hourly CO ELVs; otherwise, leave it blank and complete the CO 95% 10 min tab"]
[]
[null,null,null,null,null,null,null,null,null,null,null,null,null,null,null,null,"User to add logic to complete Whole installation, Table A5:G18. From the data in Per Combustion Line, Table J6:O79, subject to No. of lines installed"]
[{"$f":"+'Cover Page'!C39","v":2025},"1/2 Hourly Reference Periods",null,null,"Daily Reference Periods"]
["mg/Nm3","1/2 hourly CO ELV","Monthly mean of half-hourly averages","Highest half- hourly average","Daily CO ELV","Monthly mean of  daily averages","Highest daily average",null,null,{"$f":"+A8","v":2025},"mg/Nm3","Monthly mean of half-hourly averages","Highest half- hourly average","Monthly mean of  daily averages","Highest daily average"]
["Jan",100,null,null,50,null,null,null,null,"A1","Jan"]
["Feb",{"$f":"+B10","v":100},null,null,{"$f":"+E10","v":50},null,null,null,null,null,"Feb"]
["Mar",{"$f":"+B11","v":100},null,null,{"$f":"+E11","v":50},null,null,null,null,null,"Mar",null,null,null,null,null,"Whole Installation table A5:G18:"]
["Apr",100,null,null,50,null,null,null,null,null,"Apr",null,null,null,null,null,"Mean: for 1/2 hourly and daily periods calculate mean of values across all operational combustion lines for the month"]
["May",100,null,null,50,null,null,null,null,null,"May"]
["Jun",100,null,null,50,null,null,null,null,null,"Jun"]
["Jul",100,null,null,50,null,null,null,null,null,"Jul",null,null,null,null,null,"Maximum: for 1/2 hourly and daily periods use the highest value across all operational combustion lines for the month"]
["Aug",100,null,null,50,null,null,null,null,null,"Aug"]
["Sep",100,null,null,50,null,null,null,null,null,"Sep"]
["Oct",100,null,null,50,null,null,null,null,null,"Oct"]
["Nov",100,null,null,50,null,null,null,null,null,"Nov"]
["Dec",100,null,null,50,null,null,null,null,null,"Dec"]
[null,null,null,null,null,null,null,null,null,null,"Annual",{"$f":"AVERAGE(L10:L21)","v":{"$error":"#DIV/0!"}},{"$f":"MAX(M10:M21)","v":0},{"$f":"AVERAGE(N10:N21)","v":{"$error":"#DIV/0!"}},{"$f":"MAX(O10:O21)","v":0}]
[]
[null,null,null,null,null,null,null,null,null,{"$f":"+A8","v":2025},"mg/Nm3","Monthly mean of half-hourly averages","Highest half- hourly average","Monthly mean of  daily averages","Highest daily average"]
[null,null,null,null,null,null,null,null,null,"A2","Jan"]
[null,null,null,null,null,null,null,null,null,null,"Feb"]
[null,null,null,null,null,null,null,null,null,null,"Mar"]
[null,null,null,null,null,null,null,null,null,null,"Apr"]
[null,null,null,null,null,null,null,null,null,null,"May"]
[null,null,null,null,null,null,null,null,null,null,"Jun"]
[null,null,null,null,null,null,null,null,null,null,"Jul"]
[null,null,null,null,null,null,null,null,null,null,"Aug"]
[null,null,null,null,null,null,null,null,null,null,"Sep"]
[null,null,null,null,null,null,null,null,null,null,"Oct"]
[null,null,null,null,null,null,null,null,null,null,"Nov"]
[null,null,null,null,null,null,null,null,null,null,"Dec"]
[null,null,null,null,null,null,null,null,null,null,"Annual",{"$f":"AVERAGE(L25:L36)","v":{"$error":"#DIV/0!"}},{"$f":"MAX(M25:M36)","v":0},{"$f":"AVERAGE(N25:N36)","v":{"$error":"#DIV/0!"}},{"$f":"MAX(O25:O36)","v":0}]
[]
[null,null,null,null,null,null,null,null,null,{"$f":"+A8","v":2025},"mg/Nm3","Monthly mean of half-hourly averages","Highest half- hourly average","Monthly mean of  daily averages","Highest daily average"]
[null,null,null,null,null,null,null,null,null,"A3","Jan"]
[null,null,null,null,null,null,null,null,null,null,"Feb"]
[null,null,null,null,null,null,null,null,null,null,"Mar"]
[null,null,null,null,null,null,null,null,null,null,"Apr"]
[null,null,null,null,null,null,null,null,null,null,"May"]
[null,null,null,null,null,null,null,null,null,null,"Jun"]
[null,null,null,null,null,null,null,null,null,null,"Jul"]
[null,null,null,null,null,null,null,null,null,null,"Aug"]
[null,null,null,null,null,null,null,null,null,null,"Sep"]
[null,null,null,null,null,null,null,null,null,null,"Oct"]
[null,null,null,null,null,null,null,null,null,null,"Nov"]
["Comments :",null,null,null,null,null,null,null,null,null,"Dec"]
[null,null,null,null,null,null,null,null,null,null,"Annual",{"$f":"AVERAGE(L40:L51)","v":{"$error":"#DIV/0!"}},{"$f":"MAX(M40:M51)","v":0},{"$f":"AVERAGE(N40:N51)","v":{"$error":"#DIV/0!"}},{"$f":"MAX(O40:O51)","v":0}]
[]
[null,null,null,null,null,null,null,null,null,{"$f":"+A8","v":2025},"mg/Nm3","Monthly mean of half-hourly averages","Highest half- hourly average","Monthly mean of  daily averages","Highest daily average"]
[null,null,null,null,null,null,null,null,null,"A4","Jan"]
[null,null,null,null,null,null,null,null,null,null,"Feb"]
[null,null,null,null,null,null,null,null,null,null,"Mar"]
[null,null,null,null,null,null,null,null,null,null,"Apr"]
[null,null,null,null,null,null,null,null,null,null,"May"]
[null,null,null,null,null,null,null,null,null,null,"Jun"]
[null,null,null,null,null,null,null,null,null,null,"Jul"]
[null,null,null,null,null,null,null,null,null,null,"Aug"]
[null,null,null,null,null,null,null,null,null,null,"Sep"]
[null,null,null,null,null,null,null,null,null,null,"Oct"]
[null,null,null,null,null,null,null,null,null,null,"Nov"]
[null,null,null,null,null,null,null,null,null,null,"Dec"]
[null,null,null,null,null,null,null,null,null,null,"Annual",{"$f":"AVERAGE(L55:L66)","v":{"$error":"#DIV/0!"}},{"$f":"MAX(M55:M66)","v":0},{"$f":"AVERAGE(N55:N66)","v":{"$error":"#DIV/0!"}},{"$f":"MAX(O55:O66)","v":0}]
[]
[null,null,null,null,null,null,null,null,null,{"$f":"+A8","v":2025},"mg/Nm3","Monthly mean of half-hourly averages","Highest half- hourly average","Monthly mean of  daily averages","Highest daily average"]
[null,null,null,null,null,null,null,null,null,"A5","Jan"]
[null,null,null,null,null,null,null,null,null,null,"Feb"]
[null,null,null,null,null,null,null,null,null,null,"Mar"]
[null,null,null,null,null,null,null,null,null,null,"Apr"]
[null,null,null,null,null,null,null,null,null,null,"May"]
[null,null,null,null,null,null,null,null,null,null,"Jun"]
[null,null,null,null,null,null,null,null,null,null,"Jul"]
[null,null,null,null,null,null,null,null,null,null,"Aug"]
[null,null,null,null,null,null,null,null,null,null,"Sep"]
[null,null,null,null,null,null,null,null,null,null,"Oct"]
[null,null,null,null,null,null,null,null,null,null,"Nov"]
[null,null,null,null,null,null,null,null,null,null,"Dec"]
[null,null,null,null,null,null,null,null,null,null,"Annual",{"$f":"AVERAGE(L70:L81)","v":{"$error":"#DIV/0!"}},{"$f":"MAX(M70:M81)","v":0},{"$f":"AVERAGE(N70:N81)","v":{"$error":"#DIV/0!"}},{"$f":"MAX(O70:O81)","v":0}]

{"sheet":"CO 95% 10 min","index":20,"n_rows":82,"n_cols":19,"rows_kept":82,"cut":false,"hidden":false,"merged":[[4,0,5,7],[6,18,10,20],[12,18,14,20],[15,18,18,20],[69,10,81,10],[7,1,7,4],[7,5,7,7],[7,10,7,16],[9,10,21,10],[24,10,36,10],[39,10,51,10],[50,0,50,7],[51,0,54,7],[54,10,66,10]]}
[{"$f":"+'Cover Page'!$B$29","v":"Annual Performance Report 2025"},null,null,null,{"$f":"+'Cover Page'!$B$33","v":"Lakeside Energy from Waste Limited"}]
[]
["Monitoring of Carbon Monoxide (10-minute avg)",null,null,null,"Whole Installation",null,null,"See  Notes in Cell S3",null,{"$f":"+A3","v":"Monitoring of Carbon Monoxide (10-minute avg)"},null,null,null,null,"Per Combustion Line",null,"Notes:",null,"Notes:"]
[]
["Please complete this tab for your plant if you have 10-minute average CO ELVs; otherwise, leave it blank and complete the CO 0.5 hourly tab"]
[]
[null,null,null,null,null,null,null,null,null,null,null,null,null,null,null,null,null,null,"User to add logic to complete Whole installation, Table A5:H18. From the data in Per Combustion Line, Table K6:Q79, subject to No. of lines installed"]
[{"$f":"+'Cover Page'!C39","v":2025},"10-minute Reference Periods",null,null,null,"Daily Reference Periods"]
["mg/Nm3","95%ile 10-min avg CO ELV","Highest daily 95%ile 10-min average","Monthly mean of 10-min averages","Highest 10-min average","Daily CO ELV","Monthly mean of  daily averages","Highest daily average",null,null,{"$f":"+A8","v":2025},"mg/Nm3","Highest daily 95%ile 10-min average","Monthly mean of 10-min averages","Highest 10-min average","Monthly mean of  daily averages","Highest daily average"]
["Jan",150,{"$f":"(M10+M25)/2","v":76.78},{"$f":"(N10+N25)/2","v":7.6749999999999998},774.22,50,{"$f":"(P10+P25)/2","v":7.65},{"$f":"(Q10+Q25)/2","v":15.25},null,null,"A1","Jan",90.6,8.86,758.93,8.81,16.27]
["Feb",{"$f":"+B10","v":150},{"$f":"(M11+M26)/2","v":99.715000000000003},{"$f":"(N11+N26)/2","v":9.9550000000000001},{"$f":"(O11+O26)/2","v":1153.885},{"$f":"+F10","v":50},{"$f":"(P11+P26)/2","v":10.024999999999999},23.875,null,null,null,"Feb",102.23,12.57,1645.17,12.7,28.85]
["Mar",{"$f":"+B11","v":150},85.449999999999989,9.26,762.05,{"$f":"+F11","v":50},{"$f":"(P12+P27)/2","v":9.4049999999999994},18.66,null,null,null,"Mar",87.3,11.49,883.06,11.68,20.45,null,"Whole Installation table A5:H18:"]
["Apr",150,86.08,6.6850000000000005,967.46,50,{"$f":"(P13+P28)/2","v":6.6300000000000008},15.440000000000001,null,null,null,"Apr",86.44,8.93,1346.9,8.9600000000000009,15.71,null,"Mean: for 10-min and daily periods use average of all operational combustion lines."]
["May",150,121.905,9.3049999999999997,1982.7449999999999,50,{"$f":"(P14+P29)/2","v":9.375},32.450000000000003,null,null,null,"May",110.33,11.41,876.12,11.51,22.39]
["Jun",150,60.325000000000003,8.0749999999999993,822.67000000000007,50,{"$f":"(P15+P30)/2","v":8.08},15.475000000000001,null,null,null,"Jun",80.17,11.59,1084.67,11.59,20.89]
["Jul",150,84.034999999999997,13.774999999999999,1196.94,50,{"$f":"(P16+P31)/2","v":13.535},25.119999999999997,null,null,null,"Jul",110.23,17.059999999999999,1537.36,17.010000000000002,32.4,null,"Maximum: for 10-min and daily periods use the highest of all operational combustion lines in any month."]
["Aug",150,50.914999999999999,9.65,885.11000000000013,50,{"$f":"(P17+P32)/2","v":9.6950000000000003},21.87,null,null,null,"Aug",25.06,8.89,683.59,8.91,16.600000000000001]
["Sep",150,75.8,11.105,1234.925,50,{"$f":"(P18+P33)/2","v":11.074999999999999},18.625,null,null,null,"Sep",42.26,9.84,956.61,9.7799999999999994,15.01]
["Oct",150,88.09,12.955,1094.5999999999999,50,{"$f":"(P19+P34)/2","v":12.955},24.33,null,null,null,"Oct",68.87,11.42,1092.8,11.42,21.57]
["Nov",150,90.425000000000011,13.225,617.51,50,{"$f":"(P20+P35)/2","v":13.225},24.380000000000003,null,null,null,"Nov",33.700000000000003,10.32,339.44,10.32,13.27]
["Dec",150,79.08,11.91,791.66,50,{"$f":"(P21+P36)/2","v":11.91},20.059999999999999,null,null,null,"Dec",37.61,10.210000000000001,552.29,10.210000000000001,15.9]
[null,null,null,null,null,null,null,null,null,null,null,"Annual",{"$f":"MAX(M10:M21)","v":110.33},{"$f":"AVERAGE(N10:N21)","v":11.04916666666667},{"$f":"MAX(O10:O21)","v":1645.17},{"$f":"AVERAGE(P10:P21)","v":11.075000000000001},{"$f":"MAX(Q10:Q21)","v":32.4}]
[]
[null,null,null,null,null,null,null,null,null,null,{"$f":"+A8","v":2025},"mg/Nm3","Highest daily 95%ile 10-min average","Monthly mean of 10-min averages","Highest 10-min average","Monthly mean of  daily averages","Highest daily average"]
[null,null,null,null,null,null,null,null,null,null,"A2","Jan",62.96,6.49,789.51,6.49,14.23]
[null,null,null,null,null,null,null,null,null,null,null,"Feb",97.2,7.34,662.6,7.35,18.899999999999999]
[null,null,null,null,null,null,null,null,null,null,null,"Mar",83.6,7.03,641.04,7.13,16.87]
[null,null,null,null,null,null,null,null,null,null,null,"Apr",85.72,4.4400000000000004,588.02,4.3,15.17]
[null,null,null,null,null,null,null,null,null,null,null,"May",133.47999999999999,7.2,3089.37,7.24,42.51]
[null,null,null,null,null,null,null,null,null,null,null,"Jun",40.479999999999997,4.5599999999999996,560.66999999999996,4.57,10.06]
[null,null,null,null,null,null,null,null,null,null,null,"Jul",57.84,10.49,856.52,10.06,17.84]
[null,null,null,null,null,null,null,null,null,null,null,"Aug",76.77,10.41,1086.6300000000001,10.48,27.14]
[null,null,null,null,null,null,null,null,null,null,null,"Sep",109.34,12.37,1513.24,12.37,22.24]
[null,null,null,null,null,null,null,null,null,null,null,"Oct",107.31,14.49,1096.4000000000001,14.49,27.09]
[null,null,null,null,null,null,null,null,null,null,null,"Nov",147.15,16.13,895.58,16.13,35.49]
[null,null,null,null,null,null,null,null,null,null,null,"Dec",120.55,13.61,1031.03,13.61,24.22]
[null,null,null,null,null,null,null,null,null,null,null,"Annual",{"$f":"MAX(M25:M36)","v":147.15},{"$f":"AVERAGE(N25:N36)","v":9.5466666666666669},{"$f":"MAX(O25:O36)","v":3089.37},{"$f":"AVERAGE(P25:P36)","v":9.5183333333333326},{"$f":"MAX(Q25:Q36)","v":42.51}]
[]
[null,null,null,null,null,null,null,null,null,null,{"$f":"+A8","v":2025},"mg/Nm3","Highest daily 95%ile 10-min average","Monthly mean of 10-min averages","Highest 10-min average","Monthly mean of  daily averages","Highest daily average"]
[null,null,null,null,null,null,null,null,null,null,"A3","Jan"]
[null,null,null,null,null,null,null,null,null,null,null,"Feb"]
[null,null,null,null,null,null,null,null,null,null,null,"Mar"]
[null,null,null,null,null,null,null,null,null,null,null,"Apr"]
[null,null,null,null,null,null,null,null,null,null,null,"May"]
[null,null,null,null,null,null,null,null,null,null,null,"Jun"]
[null,null,null,null,null,null,null,null,null,null,null,"Jul"]
[null,null,null,null,null,null,null,null,null,null,null,"Aug"]
[null,null,null,null,null,null,null,null,null,null,null,"Sep"]
[null,null,null,null,null,null,null,null,null,null,null,"Oct"]
[null,null,null,null,null,null,null,null,null,null,null,"Nov"]
["Comments :",null,null,null,null,null,null,null,null,null,null,"Dec"]
["Environment Agency explanatory note: The 10-minute average ELV is based on the “95th percentile”. In this case this means that 95% of the 10 minute averages in the relevant 24-hour period (i.e. 137) must be below 150 mg/Nm3, and 5% (i.e. 7) are allowed to be any value above 150 mg/Nm3. Whilst we expect operators to minimise CO emissions at all times, it is perfectly acceptable for the value of the maximum 10-minute average to be above 150 mg/Nm3, provided the 95th percentile ELV has been met for that period. ",null,null,null,null,null,null,null,null,null,null,"Annual",{"$f":"AVERAGE(M40:M51)","v":{"$error":"#DIV/0!"}},null,{"$f":"MAX(O40:O51)","v":0},{"$f":"AVERAGE(P40:P51)","v":{"$error":"#DIV/0!"}},{"$f":"MAX(Q40:Q51)","v":0}]
[]
[null,null,null,null,null,null,null,null,null,null,{"$f":"+A8","v":2025},"mg/Nm3","Highest daily 95%ile 10-min average","Monthly mean of 10-min averages","Highest 10-min average","Monthly mean of  daily averages","Highest daily average"]
[null,null,null,null,null,null,null,null,null,null,"A4","Jan"]
[null,null,null,null,null,null,null,null,null,null,null,"Feb"]
[null,null,null,null,null,null,null,null,null,null,null,"Mar"]
[null,null,null,null,null,null,null,null,null,null,null,"Apr"]
[null,null,null,null,null,null,null,null,null,null,null,"May"]
[null,null,null,null,null,null,null,null,null,null,null,"Jun"]
[null,null,null,null,null,null,null,null,null,null,null,"Jul"]
[null,null,null,null,null,null,null,null,null,null,null,"Aug"]
[null,null,null,null,null,null,null,null,null,null,null,"Sep"]
[null,null,null,null,null,null,null,null,null,null,null,"Oct"]
[null,null,null,null,null,null,null,null,null,null,null,"Nov"]
[null,null,null,null,null,null,null,null,null,null,null,"Dec"]
[null,null,null,null,null,null,null,null,null,null,null,"Annual",{"$f":"AVERAGE(M55:M66)","v":{"$error":"#DIV/0!"}},null,{"$f":"MAX(O55:O66)","v":0},{"$f":"AVERAGE(P55:P66)","v":{"$error":"#DIV/0!"}},{"$f":"MAX(Q55:Q66)","v":0}]
[]
[null,null,null,null,null,null,null,null,null,null,{"$f":"+A8","v":2025},"mg/Nm3","95%ile 10-min avg maximum","Monthly CO 10-min avg mean","10-min avg maximum","Monthly daily mean","Monthly daily maximum"]
[null,null,null,null,null,null,null,null,null,null,"A5","Jan"]
[null,null,null,null,null,null,null,null,null,null,null,"Feb"]
[null,null,null,null,null,null,null,null,null,null,null,"Mar"]
[null,null,null,null,null,null,null,null,null,null,null,"Apr"]
[null,null,null,null,null,null,null,null,null,null,null,"May"]
[null,null,null,null,null,null,null,null,null,null,null,"Jun"]
[null,null,null,null,null,null,null,null,null,null,null,"Jul"]
[null,null,null,null,null,null,null,null,null,null,null,"Aug"]
[null,null,null,null,null,null,null,null,null,null,null,"Sep"]
[null,null,null,null,null,null,null,null,null,null,null,"Oct"]
[null,null,null,null,null,null,null,null,null,null,null,"Nov"]
[null,null,null,null,null,null,null,null,null,null,null,"Dec"]
[null,null,null,null,null,null,null,null,null,null,null,"Annual",{"$f":"AVERAGE(M70:M81)","v":{"$error":"#DIV/0!"}},null,{"$f":"MAX(O70:O81)","v":0},{"$f":"AVERAGE(P70:P81)","v":{"$error":"#DIV/0!"}},{"$f":"MAX(Q70:Q81)","v":0}]

{"sheet":"NH3","index":21,"n_rows":79,"n_cols":17,"rows_kept":79,"cut":false,"hidden":false,"merged":[[3,16,7,18],[9,16,11,18],[12,16,15,18],[66,9,78,9],[4,1,4,3],[4,4,4,6],[4,9,4,14],[6,9,18,9],[21,9,33,9],[36,9,48,9],[47,0,47,6],[48,0,51,6],[51,9,63,9],[18,4,18,6]]}
[{"$f":"+'Cover Page'!$B$29","v":"Annual Performance Report 2025"},null,null,null,{"$f":"+'Cover Page'!$B$33","v":"Lakeside Energy from Waste Limited"}]
[]
["Monitoring of Ammnonia emissions ",null,null,"Whole Installation",null,null,"See  Notes in Cell Q3",null,null,{"$f":"+A3","v":"Monitoring of Ammnonia emissions "},null,null,null,"Per Combustion Line",null,null,"Notes:"]
[null,null,null,null,null,null,null,null,null,null,null,null,null,null,null,null,"User to add logic to complete Whole installation, Table A5:G18. From the data in Per Combustion Line, Table J6:O79, subject to No. of lines installed"]
[{"$f":"+'Cover Page'!C39","v":2025},"1/2 Hourly Reference Periods",null,null,"Daily Reference Periods"]
["mg/Nm3","1/2 hourly NH3 ELV","Monthly mean of half-hourly averages","Highest half- hourly average","Daily NH3 ELV","Monthly mean of  daily averages","Highest daily average",null,null,{"$f":"+A5","v":2025},"mg/Nm3","Monthly mean of half-hourly averages","Highest half- hourly average","Monthly mean of  daily averages","Highest daily average"]
["Jan","None",{"$f":"(L7+L22)/2","v":0.315},{"$f":"(M7+M22)/2","v":3.99},15,{"$f":"(N7+N22)/2","v":0.315},{"$f":"(O7+O22)/2","v":0.63500000000000001},null,null,"A1","Jan",0.25,4.2300000000000004,0.25,0.56999999999999995]
["Feb",{"$f":"+B7","v":"None"},{"$f":"(L8+L23)/2","v":0.39},9.4350000000000005,15,{"$f":"(N8+N23)/2","v":0.39},1.2450000000000001,null,null,null,"Feb",0.35,9.4700000000000006,0.35,1.0900000000000001]
["Mar",{"$f":"+B8","v":"None"},{"$f":"(L9+L24)/2","v":0.34499999999999997},3.3449999999999998,15,{"$f":"(N9+N24)/2","v":0.35},0.53499999999999992,null,null,null,"Mar",0.28999999999999998,3.44,0.3,0.5,null,"Whole Installation table A5:G18:"]
["Apr","None",{"$f":"(L10+L25)/2","v":0.51500000000000001},16.375,15,{"$f":"(N10+N25)/2","v":0.44999999999999996},2.6349999999999998,null,null,null,"Apr",0.37,12.78,0.33,0.84,null,"Mean: for 1/2 hourly and daily periods calculate mean of values across all operational combustion lines for the month"]
["May","None",{"$f":"(L11+L26)/2","v":0.36},3.63,15,{"$f":"(N11+N26)/2","v":0.36},0.875,null,null,null,"May",0.33,1.94,0.33,0.55000000000000004]
["Jun","None",{"$f":"(L12+L27)/2","v":0.33499999999999996},2.9649999999999999,15,{"$f":"(N12+N27)/2","v":0.33499999999999996},0.53500000000000003,null,null,null,"Jun",0.31,2.83,0.31,0.44]
["Jul","None",{"$f":"(L13+L28)/2","v":0.23},3.44,15,{"$f":"(N13+N28)/2","v":0.22500000000000001},0.53,null,null,null,"Jul",0.34,5.41,0.33,0.65,null,"Maximum: for 1/2 hourly and daily periods use the highest value across all operational combustion lines for the month"]
["Aug","None",{"$f":"(L14+L29)/2","v":0.17499999999999999},4.3849999999999998,15,{"$f":"(N14+N29)/2","v":0.16},0.42500000000000004,null,null,null,"Aug",0.21,5.07,0.19,0.39]
["Sep","None",{"$f":"(L15+L30)/2","v":0.21000000000000002},1.79,15,{"$f":"(N15+N30)/2","v":0.20500000000000002},0.375,null,null,null,"Sep",0.28000000000000003,1.63,0.27,0.45]
["Oct","None",{"$f":"(L16+L31)/2","v":0.24},3.2349999999999999,15,{"$f":"(N16+N31)/2","v":0.24},0.39,null,null,null,"Oct",0.31,4.05,0.31,0.46]
["Nov","None",{"$f":"(L17+L32)/2","v":0.245},2.98,15,{"$f":"(N17+N32)/2","v":0.245},0.41499999999999998,null,null,null,"Nov",0.3,1.91,0.3,0.48]
["Dec","None",{"$f":"(L18+L33)/2","v":0.20500000000000002},1.9749999999999999,15,{"$f":"(N18+N33)/2","v":0.20500000000000002},0.39500000000000002,null,null,null,"Dec",0.27,0.82,0.27,0.43]
[null,null,null,null,null,null,null,null,null,null,"Annual",{"$f":"AVERAGE(L7:L18)","v":0.30083333333333329},{"$f":"MAX(M7:M18)","v":12.78},{"$f":"AVERAGE(N7:N18)","v":0.29499999999999998},{"$f":"MAX(O7:O18)","v":1.0900000000000001}]
[]
[null,null,null,null,null,null,null,null,null,{"$f":"+A5","v":2025},"mg/Nm3","Monthly mean of half-hourly averages","Highest half- hourly average","Monthly mean of  daily averages","Highest daily average"]
[null,null,null,null,null,null,null,null,null,"A2","Jan",0.38,3.75,0.38,0.7]
[null,null,null,null,null,null,null,null,null,null,"Feb",0.43,9.4,0.43,1.4]
[null,null,null,null,null,null,null,null,null,null,"Mar",0.4,3.25,0.4,0.56999999999999995]
[null,null,null,null,null,null,null,null,null,null,"Apr",0.66,19.97,0.56999999999999995,4.43]
[null,null,null,null,null,null,null,null,null,null,"May",0.39,5.32,0.39,1.2]
[null,null,null,null,null,null,null,null,null,null,"Jun",0.36,3.1,0.36,0.63]
[null,null,null,null,null,null,null,null,null,null,"Jul",0.12,1.47,0.12,0.41]
[null,null,null,null,null,null,null,null,null,null,"Aug",0.14000000000000001,3.7,0.13,0.46]
[null,null,null,null,null,null,null,null,null,null,"Sep",0.14000000000000001,1.95,0.14000000000000001,0.3]
[null,null,null,null,null,null,null,null,null,null,"Oct",0.17,2.42,0.17,0.32]
[null,null,null,null,null,null,null,null,null,null,"Nov",0.19,4.05,0.19,0.35]
[null,null,null,null,null,null,null,null,null,null,"Dec",0.14000000000000001,3.13,0.14000000000000001,0.36]
[null,null,null,null,null,null,null,null,null,null,"Annual",{"$f":"AVERAGE(L22:L33)","v":0.29333333333333339},{"$f":"MAX(M22:M33)","v":19.97},{"$f":"AVERAGE(N22:N33)","v":0.28499999999999998},{"$f":"MAX(O22:O33)","v":4.43}]
[]
[null,null,null,null,null,null,null,null,null,{"$f":"+A5","v":2025},"mg/Nm3","Monthly mean of half-hourly averages","Highest half- hourly average","Monthly mean of  daily averages","Highest daily average"]
[null,null,null,null,null,null,null,null,null,"A3","Jan"]
[null,null,null,null,null,null,null,null,null,null,"Feb"]
[null,null,null,null,null,null,null,null,null,null,"Mar"]
[null,null,null,null,null,null,null,null,null,null,"Apr"]
[null,null,null,null,null,null,null,null,null,null,"May"]
[null,null,null,null,null,null,null,null,null,null,"Jun"]
[null,null,null,null,null,null,null,null,null,null,"Jul"]
[null,null,null,null,null,null,null,null,null,null,"Aug"]
[null,null,null,null,null,null,null,null,null,null,"Sep"]
[null,null,null,null,null,null,null,null,null,null,"Oct"]
[null,null,null,null,null,null,null,null,null,null,"Nov"]
["Comments :",null,null,null,null,null,null,null,null,null,"Dec"]
["An indicated ELV value of zero in the table above means that no ammonia limit is/was set in the permit.  ",null,null,null,null,null,null,null,null,null,"Annual",{"$f":"AVERAGE(L37:L48)","v":{"$error":"#DIV/0!"}},{"$f":"MAX(M37:M48)","v":0},{"$f":"AVERAGE(N37:N48)","v":{"$error":"#DIV/0!"}},{"$f":"MAX(O37:O48)","v":0}]
[]
[null,null,null,null,null,null,null,null,null,{"$f":"+A5","v":2025},"mg/Nm3","Monthly mean of half-hourly averages","Highest half- hourly average","Monthly mean of  daily averages","Highest daily average"]
[null,null,null,null,null,null,null,null,null,"A4","Jan"]
[null,null,null,null,null,null,null,null,null,null,"Feb"]
[null,null,null,null,null,null,null,null,null,null,"Mar"]
[null,null,null,null,null,null,null,null,null,null,"Apr"]
[null,null,null,null,null,null,null,null,null,null,"May"]
[null,null,null,null,null,null,null,null,null,null,"Jun"]
[null,null,null,null,null,null,null,null,null,null,"Jul"]
[null,null,null,null,null,null,null,null,null,null,"Aug"]
[null,null,null,null,null,null,null,null,null,null,"Sep"]
[null,null,null,null,null,null,null,null,null,null,"Oct"]
[null,null,null,null,null,null,null,null,null,null,"Nov"]
[null,null,null,null,null,null,null,null,null,null,"Dec"]
[null,null,null,null,null,null,null,null,null,null,"Annual",{"$f":"AVERAGE(L52:L63)","v":{"$error":"#DIV/0!"}},{"$f":"MAX(M52:M63)","v":0},{"$f":"AVERAGE(N52:N63)","v":{"$error":"#DIV/0!"}},{"$f":"MAX(O52:O63)","v":0}]
[]
[null,null,null,null,null,null,null,null,null,{"$f":"+A5","v":2025},"mg/Nm3","Monthly mean of half-hourly averages","Highest half- hourly average","Monthly mean of  daily averages","Highest daily average"]
[null,null,null,null,null,null,null,null,null,"A5","Jan"]
[null,null,null,null,null,null,null,null,null,null,"Feb"]
[null,null,null,null,null,null,null,null,null,null,"Mar"]
[null,null,null,null,null,null,null,null,null,null,"Apr"]
[null,null,null,null,null,null,null,null,null,null,"May"]
[null,null,null,null,null,null,null,null,null,null,"Jun"]
[null,null,null,null,null,null,null,null,null,null,"Jul"]
[null,null,null,null,null,null,null,null,null,null,"Aug"]
[null,null,null,null,null,null,null,null,null,null,"Sep"]
[null,null,null,null,null,null,null,null,null,null,"Oct"]
[null,null,null,null,null,null,null,null,null,null,"Nov"]
[null,null,null,null,null,null,null,null,null,null,"Dec"]
[null,null,null,null,null,null,null,null,null,null,"Annual",{"$f":"AVERAGE(L67:L78)","v":{"$error":"#DIV/0!"}},{"$f":"MAX(M67:M78)","v":0},{"$f":"AVERAGE(N67:N78)","v":{"$error":"#DIV/0!"}},{"$f":"MAX(O67:O78)","v":0}]

{"sheet":"Template changes log","index":22,"n_rows":23,"n_cols":3,"rows_kept":23,"cut":false,"hidden":false,"merged":[]}
["Log of changes to template (Environment Agency use only)"]
[]
["Date","Description of change","New version number and date"]
["2024-01-16","Air (periodic) tab: corrected default O2 reference from 6 to 11% ","Version 23.5a (for incinerators) - 16/01/2024"]
["2024-09-23","Air (periodic) tab: corrected symbol for Thallium to Tl"]
["2024-09-23","Air (periodic) tab: removed last year's references to different emission limit values applying from 03/12/23 and updated all relevant ELVs"]
["2024-09-23","Tabs for continuously monitored pollutants (HCl, SO2 etc.): changed terminology in table headings to improve clarity"]
["2024-09-23","Tabs for continuously monitored pollutants (HCl, SO2 etc.): removed last year's references to different emission limit values applying from 03/12/23 and updated all relevant ELVs"]
["2024-09-23","Perf 1 tab: updated formula for water usage to report m3 rather than litres and corrected error with formula copying operator name"]
["2024-09-23","Operational Summary tab: table added on start-ups and shut-downs"]
["2024-09-23","Operational Summary tab: table added on dioxins and mercury protocols"]
["2024-09-23","Operational Summary tab: table added on AST, QAL 2 and calibration functions"]
["2024-09-23","CO2 N2O tab: various changes made to notes to reflect the fact that most plants should now have calibrated CEMS and flow meters + some have C14 samplers and more up to date industry data","Version 24a (for incinerators) - 23/09/24"]
["2024-11-08","CO2 N2O tab: Changed the N2O CO2 equivalence factor from 298 to 265 in line with recently updated government greenhouse gas figures: https://www.gov.uk/government/publications/greenhouse-gas-reporting-conversion-factors-2024"]
["2024-11-08","CO2 N2O tab: Added an additional requirement for municipal EfW plants to state the yearly average biogenic percentage of the waste by mass, and reference to a document which sets out a methodology for calculating NCV of waste from the results of C14 sampling."]
["2024-11-08","Permit Compliance tab: Two additional columns added + explanatory notes to the table entitled \"Summary of non-compliances under the permit\" to allow CCS scores to be stated where relevant. "]
["2024-11-08","Residue Quality tab: Note added explaining application of TOC and LOI limits and asking operators to report both metrics where measured. ","Version 24.1a (for incinerators) - 08/11/24"]
["2024-11-27","Operational Summary tab: table added on start-ups and shut-downs","Version 24.2a (for incinerators) - 27/11/24"]
["2025-11-27","Cover Page: Print as PDF and Print Report and pdf buttons deleted and blank columns removed; contents page deleted","Version 25.1a (for incinerators) - 27/11/25"]
["2025-11-27","Residue Quality tab renamed to \"Residues\", and Summary of residue handling table moved from Operational Summary tab to Residues tab."]
["2025-11-27","Various changes made to the Operational Data tab including\n•\tReformatting of the rows under the Operational data heading (Rows 3-8) to make it clearer what information is required. \n•\tAmendment of the rows under the Energy Usage / Export heading (Rows 26-32) to calculate an “indicative parasitic load” (now excluding energy imported)\n•\tAmendment of the unit for gas usage from cubic feet to cubic metres (Row 50) \n•\tSome amendments to the first 2 notes and other minor edits\n•\tDeleted \"Overall Availability, mean avg. of all lines, hrs\" row"]
["2025-11-27","Operational Summary tab: Note added requiring all emergency shut-downs be listed, irrespective of whether or not they were reportable. "]
["2025-11-27","CO2 N2O tab: Note added to ask operators to ensure that relevant data reported here matches that which will be submitted under the Pollution Inventory"]